{"text_format":"1","workbook":"xlsx","n_sheets":6,"sheets":["Summary","CompanyNames","Locations","Activities","Options","Import"],"not_rendered":{"charts":0,"images":0,"macros":1,"external_links":0,"defined_names":23,"comments":0,"pivot_tables":0},"unopened":[],"bounds":{"document_bytes":16777216,"sheet_cells":100000,"rows_first":2000,"rows_last":500,"rows_between":2000,"halvings":0,"cell_chars":16384,"cell_head_chars":4096},"cells_cut":0,"cells_raw":0,"read":"whole","date_system":"1900"}

{"sheet":"Summary","index":0,"n_rows":13,"n_cols":9,"rows_kept":13,"cut":false,"hidden":false,"merged":[[2,2,2,3]]}
[]
[]
[null,"Company Name",null,null,"Spoken with",null,null,null,"Choose Company"]
[null,"Id",{"$f":"VLOOKUP(C3,Table1[#All],2,FALSE)","v":{"$error":"#N/A"}},null,null,null,null,null,"Show Locations"]
[null,null,null,null,"Summary of discussion",null,null,null,"Get Next Activity"]
[2,{"$f":"Table3[[#Headers],[Phone Number]]","v":"Phone Number"},{"$f":"IFERROR(VLOOKUP(C$4&\"-1\",Locations!D:J,A6,FALSE),VLOOKUP(C$4&\"-\",Locations!D:K,A6,FALSE))","v":{"$error":"#N/A"}}]
[3,{"$f":"Table3[[#Headers],[Address]]","v":"Address"},{"$f":"IFERROR(VLOOKUP(C$4&\"-1\",Locations!D:J,A7,FALSE),VLOOKUP(C$4&\"-\",Locations!D:K,A7,FALSE))","v":{"$error":"#N/A"}},null,"Next steps",null,"Options"]
[4,{"$f":"Table3[[#Headers],[Classification]]","v":"Classification"},{"$f":"IFERROR(VLOOKUP(C$4&\"-1\",Locations!D:J,A8,FALSE),VLOOKUP(C$4&\"-\",Locations!D:K,A8,FALSE))","v":{"$error":"#N/A"}}]
[5,{"$f":"Table3[[#Headers],[Email]]","v":"Email"},{"$f":"IFERROR(VLOOKUP(C$4&\"-1\",Locations!D:J,A9,FALSE),VLOOKUP(C$4&\"-\",Locations!D:K,A9,FALSE))","v":{"$error":"#N/A"}},null,"Next step date (dd/mm/yyyy)",null,"Options"]
[6,{"$f":"Table3[[#Headers],[Website]]","v":"Website"},{"$f":"IFERROR(VLOOKUP(C$4&\"-1\",Locations!D:J,A10,FALSE),VLOOKUP(C$4&\"-\",Locations!D:K,A10,FALSE))","v":{"$error":"#N/A"}}]
[7,{"$f":"Table3[[#Headers],[Location Id]]","v":"Location Id"},{"$f":"IFERROR(VLOOKUP(C$4&\"-1\",Locations!D:J,A11,FALSE),VLOOKUP(C$4&\"-\",Locations!D:K,A11,FALSE))","v":{"$error":"#N/A"}},null,null,null,"Don't contact again"]
[null,"Previous Activities:"]
[null,"Date","Spoken with","Summary of discussion","Next step date","Next steps","Location Id"]

{"sheet":"CompanyNames","index":1,"n_rows":2,"n_cols":4,"rows_kept":2,"cut":false,"hidden":false,"merged":[]}
[" < Back"]
["Company Name","Company Id","Activities","Next Activity"]

{"sheet":"Locations","index":2,"n_rows":2,"n_cols":10,"rows_kept":2,"cut":false,"hidden":false,"merged":[]}
[" < Back"]
["Company Id","Company Name","Primary Location","Primary Lookup","Phone Number","Address","Classification","Email","Website","Location Id"]

{"sheet":"Activities","index":3,"n_rows":2,"n_cols":9,"rows_kept":2,"cut":false,"hidden":false,"merged":[]}
[" < Back"]
["Date","Company Id","Location Id","Company Name","Location Phone","Spoken with","Summary of discussion","Next steps","Next step date"]

{"sheet":"Options","index":4,"n_rows":10,"n_cols":8,"rows_kept":10,"cut":false,"hidden":false,"merged":[]}
[]
[null,"Next Steps Options",null,null,null,"Date Options"]
[]
[null,"Call back","Choose",null,null,"+ 1 day",{"$f":"DATE(YEAR(NOW()),MONTH(NOW()),1+DAY(NOW()))","v":"2019-03-16"},"Choose"]
[null,"Email newsletter","Choose",null,null,"+ 1 week",{"$f":"DATE(YEAR(NOW()),MONTH(NOW()),7+DAY(NOW()))","v":"2019-03-22"},"Choose"]
[null,"Send Coupon","Choose",null,null,"+ 2 weeks",{"$f":"DATE(YEAR(NOW()),MONTH(NOW()),14+DAY(NOW()))","v":"2019-03-29"},"Choose"]
[null,"Visit","Choose",null,null,"+ 1 month",{"$f":"DATE(YEAR(NOW()),1+MONTH(NOW()),DAY(NOW()))","v":"2019-04-15"},"Choose"]
[null,"Run Demo","Choose",null,null,"+ 2 months",{"$f":"DATE(YEAR(NOW()),2+MONTH(NOW()),DAY(NOW()))","v":"2019-05-15"},"Choose"]
[null,"Letter","Choose",null,null,"+ 6 months",{"$f":"DATE(YEAR(NOW()),6+MONTH(NOW()),DAY(NOW()))","v":"2019-09-15"},"Choose"]
[null,null,null,null,null,"+ 1 year",{"$f":"DATE(1+YEAR(NOW()),MONTH(NOW()),DAY(NOW()))","v":"2020-03-15"},"Choose"]

{"sheet":"Import","index":5,"n_rows":1001,"n_cols":6,"rows_kept":1001,"cut":false,"hidden":false,"merged":[]}
["Company Name","Phone Number","Address","Classification","Email","Website"]
["Abata",6993562154,"0 Dennis Pass","Sales",{"$f":"\"fakeemail@\"&F2","v":"fakeemail@stanford.edu"},"stanford.edu"]
["Abatz",2696970598,"313 Eagle Crest Center","Research and Development",{"$f":"\"fakeemail@\"&F3","v":"fakeemail@hp.com"},"hp.com"]
["Abatz",6748517513,"24 Huxley Center","Human Resources","fakeemail@instagram.com","instagram.com"]
["Agimba",7242461931,"5162 Delladonna Hill","Engineering","fakeemail@surveymonkey.com","surveymonkey.com"]
["Agimba",3769455872,"94061 Northview Circle","Research and Development","fakeemail@scientificamerican.com","scientificamerican.com"]
["Agivu",8408102450,"78290 Derek Park","Engineering","fakeemail@free.fr","free.fr"]
["Agivu",1993036395,"3964 Anthes Plaza","Marketing","fakeemail@dyndns.org","dyndns.org"]
["Aibox",5459627852,"28 Northfield Crossing","Engineering","fakeemail@issuu.com","issuu.com"]
["Aibox",2511171398,"52 North Way","Business Development","fakeemail@google.nl","google.nl"]
["Ailane",8886839653,"50878 New Castle Street","Research and Development","fakeemail@themeforest.net","themeforest.net"]
["Aimbo",3983320783,"33787 Canary Point","Marketing","fakeemail@fotki.com","fotki.com"]
["Aimbu",1614962791,"271 Luster Circle","Sales","fakeemail@phoca.cz","phoca.cz"]
["Aimbu",5651959951,"23 Corscot Hill","Services","fakeemail@addtoany.com","addtoany.com"]
["Aimbu",3993185976,"03204 Gulseth Parkway","Business Development","fakeemail@sbwire.com","sbwire.com"]
["Aimbu",1214997443,"35668 Westerfield Crossing","Human Resources","fakeemail@imgur.com","imgur.com"]
["Aimbu",8403242158,"02741 Shopko Street","Sales","fakeemail@acquirethisname.com","acquirethisname.com"]
["Aivee",8599847614,"08133 Eastwood Street","Sales","fakeemail@nba.com","nba.com"]
["Avamba",6206553956,"5 Eagle Crest Alley","Training","fakeemail@examiner.com","examiner.com"]
["Avamba",7971012056,"16307 Bowman Lane","Sales","fakeemail@paypal.com","paypal.com"]
["Avamba",6943093423,"95779 Prairieview Way","Legal","fakeemail@jiathis.com","jiathis.com"]
["Avamm",2108496905,"48 Melby Crossing","Research and Development","fakeemail@washingtonpost.com","washingtonpost.com"]
["Avamm",4875268886,"82172 Trailsway Trail","Services","fakeemail@sogou.com","sogou.com"]
["Avavee",8832454310,"101 Burning Wood Junction","Accounting","fakeemail@fastcompany.com","fastcompany.com"]
["Avavee",9694851570,"531 Stoughton Park","Legal","fakeemail@globo.com","globo.com"]
["Avaveo",3182550268,"13 La Follette Pass","Marketing","fakeemail@addtoany.com","addtoany.com"]
["Avaveo",4234944145,"33964 Transport Place","Engineering","fakeemail@slashdot.org","slashdot.org"]
["Avaveo",6893042188,"0 Lindbergh Parkway","Sales","fakeemail@over-blog.com","over-blog.com"]
["Babbleblab",7107216230,"38 Dexter Pass","Engineering","fakeemail@ameblo.jp","ameblo.jp"]
["Babbleblab",8573372415,"2 Sutteridge Plaza","Human Resources","fakeemail@ucoz.com","ucoz.com"]
["Babbleblab",1045047120,"402 Bartelt Center","Human Resources","fakeemail@berkeley.edu","berkeley.edu"]
["Babbleopia",7324827254,"8 Carberry Hill","Business Development","fakeemail@guardian.co.uk","guardian.co.uk"]
["Babbleopia",2844729531,"04799 Sutteridge Parkway","Accounting","fakeemail@blogspot.com","blogspot.com"]
["Babbleopia",5608842452,"1888 Summerview Trail","Legal","fakeemail@sohu.com","sohu.com"]
["Babbleopia",2109843072,"309 Monument Trail","Engineering","fakeemail@free.fr","free.fr"]
["Babbleopia",7191175030,"3 Loeprich Road","Research and Development","fakeemail@ovh.net","ovh.net"]
["Babbleset",5771184504,"41 Summit Lane","Sales","fakeemail@va.gov","va.gov"]
["Babbleset",1954261036,"854 Tennessee Drive","Business Development","fakeemail@squarespace.com","squarespace.com"]
["Babblestorm",8501880249,"21 Sloan Lane","Sales","fakeemail@who.int","who.int"]
["Blognation",9722554345,"3 Fremont Way","Engineering","fakeemail@taobao.com","taobao.com"]
["Blognation",4614001098,"16632 Pond Parkway","Services","fakeemail@163.com","163.com"]
["Blognation",4499225756,"74 Iowa Center","Human Resources","fakeemail@cbslocal.com","cbslocal.com"]
["Blogpad",8733821296,"88439 Bonner Parkway","Human Resources","fakeemail@microsoft.com","microsoft.com"]
["Blogpad",4907864304,"8237 Mesta Center","Sales","fakeemail@taobao.com","taobao.com"]
["Blogpad",2252356461,"975 Sauthoff Drive","Training","fakeemail@reverbnation.com","reverbnation.com"]
["Blogspan",7764688512,"09 Oneill Junction","Marketing","fakeemail@digg.com","digg.com"]
["Blogspan",9513659983,"7 Mockingbird Crossing","Research and Development","fakeemail@washingtonpost.com","washingtonpost.com"]
["Blogspan",2485553955,"519 Logan Parkway","Sales","fakeemail@home.pl","home.pl"]
["Blogtag",3886795667,"9 Porter Court","Training","fakeemail@desdev.cn","desdev.cn"]
["Blogtags",6032428207,"14876 Westridge Center","Human Resources","fakeemail@shop-pro.jp","shop-pro.jp"]
["Blogtags",4532777534,"8588 Wayridge Court","Marketing","fakeemail@usa.gov","usa.gov"]
["BlogXS",4158478959,"8413 Vidon Point","Product Management","fakeemail@clickbank.net","clickbank.net"]
["BlogXS",8077976257,"96 Dovetail Pass","Human Resources","fakeemail@cmu.edu","cmu.edu"]
["BlogXS",6439361992,"15236 Forest Trail","Legal","fakeemail@npr.org","npr.org"]
["Bluejam",7853145959,"3 Clarendon Park","Product Management","fakeemail@live.com","live.com"]
["Bluejam",1827080857,"408 Lighthouse Bay Alley","Marketing","fakeemail@ed.gov","ed.gov"]
["Bluejam",8607382858,"722 Pleasure Alley","Training","fakeemail@berkeley.edu","berkeley.edu"]
["Bluezoom",5973924145,"63 Caliangt Avenue","Marketing","fakeemail@zimbio.com","zimbio.com"]
["Brainbox",1563026156,"141 Warner Street","Human Resources","fakeemail@sphinn.com","sphinn.com"]
["Brainsphere",6251802784,"91 Maywood Court","Services","fakeemail@sogou.com","sogou.com"]
["Brainverse",7778738400,"66933 Shoshone Parkway","Sales","fakeemail@ft.com","ft.com"]
["Brainverse",3421600417,"3 Bashford Park","Marketing","fakeemail@quantcast.com","quantcast.com"]
["Brainverse",1626451233,"6 Moulton Road","Product Management","fakeemail@cpanel.net","cpanel.net"]
["Brightbean",9751767536,"62 Northport Terrace","Sales","fakeemail@webmd.com","webmd.com"]
["Brightbean",2705262474,"5852 Loeprich Point","Engineering","fakeemail@cam.ac.uk","cam.ac.uk"]
["Brightdog",2036597205,"3181 Tony Place","Human Resources","fakeemail@bloglines.com","bloglines.com"]
["Brightdog",6513383267,"1 Merchant Crossing","Sales",{"$f":"\"fakeemail@\"&F67","v":"fakeemail@psu.edu"},"psu.edu"]
["Brightdog",5494305260,"35361 Rigney Court","Legal","fakeemail@dropbox.com","dropbox.com"]
["Brightdog",1709247320,"611 Rigney Plaza","Engineering","fakeemail@i2i.jp","i2i.jp"]
["Browseblab",9068369279,"9716 Mandrake Way","Human Resources","fakeemail@google.fr","google.fr"]
["Browseblab",5278199052,"284 Boyd Way","Business Development","fakeemail@godaddy.com","godaddy.com"]
["Browseblab",9197972026,"8579 Ohio Street","Legal","fakeemail@github.com","github.com"]
["Browsebug",7223070403,"040 Eliot Place","Research and Development","fakeemail@fema.gov","fema.gov"]
["Browsebug",1499283911,"56166 Bayside Court","Legal","fakeemail@kickstarter.com","kickstarter.com"]
["Browsebug",3601852096,"07 Roxbury Hill","Legal","fakeemail@home.pl","home.pl"]
["Browsecat",5853105886,"5683 Roxbury Pass","Product Management","fakeemail@hhs.gov","hhs.gov"]
["Browsedrive",5558546257,"97603 Beilfuss Street","Product Management","fakeemail@posterous.com","posterous.com"]
["Browsedrive",3211843406,"546 Gulseth Park","Training","fakeemail@ehow.com","ehow.com"]
["Browsetype",4543997328,"391 Lillian Plaza","Research and Development","fakeemail@seesaa.net","seesaa.net"]
["Browsetype",5183389254,"58 Russell Terrace","Engineering","fakeemail@yellowbook.com","yellowbook.com"]
["Browsetype",7815856371,"62580 Knutson Street","Human Resources","fakeemail@wikispaces.com","wikispaces.com"]
["Browsetype",6418092656,"96538 Esker Parkway","Training","fakeemail@wikia.com","wikia.com"]
["Browsezoom",6476947740,"8 Maple Wood Alley","Business Development","fakeemail@usgs.gov","usgs.gov"]
["Browsezoom",6644033003,"58 Hintze Alley","Accounting","fakeemail@deviantart.com","deviantart.com"]
["Browsezoom",4214673012,"681 Texas Junction","Product Management","fakeemail@discovery.com","discovery.com"]
["Bubblebox",1576320621,"5694 Dottie Point","Legal","fakeemail@tiny.cc","tiny.cc"]
["Bubblebox",3933786792,"7 Darwin Junction","Research and Development","fakeemail@privacy.gov.au","privacy.gov.au"]
["Bubblemix",5347224632,"21445 La Follette Circle","Legal","fakeemail@nasa.gov","nasa.gov"]
["Bubblemix",4301262497,"300 Paget Crossing","Research and Development","fakeemail@chron.com","chron.com"]
["Bubbletube",8056768526,"22995 Cherokee Trail","Legal","fakeemail@japanpost.jp","japanpost.jp"]
["Bubbletube",4307296384,"43376 Nevada Lane","Product Management","fakeemail@nbcnews.com","nbcnews.com"]
["Buzzbean",4534579727,"691 Pleasure Terrace","Training","fakeemail@seesaa.net","seesaa.net"]
["Buzzbean",1201643635,"02068 Beilfuss Point","Accounting","fakeemail@sfgate.com","sfgate.com"]
["Buzzbean",6873345584,"7 Graedel Drive","Engineering","fakeemail@joomla.org","joomla.org"]
["Buzzbean",2871503614,"23 Merchant Trail","Sales","fakeemail@newyorker.com","newyorker.com"]
["Buzzbean",9137657262,"3 Schiller Drive","Accounting","fakeemail@ca.gov","ca.gov"]
["Buzzdog",5138447099,"3004 Sheridan Junction","Engineering","fakeemail@cargocollective.com","cargocollective.com"]
["Buzzshare",2741822268,"40812 Aberg Plaza","Human Resources","fakeemail@shareasale.com","shareasale.com"]
["Buzzshare",4015391210,"5345 Hollow Ridge Drive","Human Resources","fakeemail@fema.gov","fema.gov"]
["Buzzshare",7408576876,"286 Aberg Place","Legal","fakeemail@wsj.com","wsj.com"]
["Buzzshare",6475396694,"7009 Mitchell Point","Business Development","fakeemail@patch.com","patch.com"]
["Buzzster",8012617546,"540 Hanover Drive","Support","fakeemail@goodreads.com","goodreads.com"]
["Buzzster",5573869833,"7 Graedel Pass","Marketing","fakeemail@dailymail.co.uk","dailymail.co.uk"]
["Camido",2569890461,"19 Ridgeway Way","Research and Development","fakeemail@opera.com","opera.com"]
["Camido",1345711512,"809 Algoma Lane","Business Development","fakeemail@hugedomains.com","hugedomains.com"]
["Camimbo",8262855689,"7642 Scoville Way","Services","fakeemail@thetimes.co.uk","thetimes.co.uk"]
["Camimbo",2015867760,"5 Lakewood Point","Support","fakeemail@narod.ru","narod.ru"]
["Centidel",1706021215,"66387 Clemons Way","Engineering","fakeemail@webnode.com","webnode.com"]
["Centidel",7018758593,"3 Elka Street","Marketing","fakeemail@gravatar.com","gravatar.com"]
["Centimia",3682879061,"168 Mayfield Circle","Sales","fakeemail@seesaa.net","seesaa.net"]
["Centizu",8036875612,"104 Golden Leaf Point","Support","fakeemail@e-recht24.de","e-recht24.de"]
["Centizu",1552136151,"03 Lien Place","Research and Development","fakeemail@yellowpages.com","yellowpages.com"]
["Chatterbridge",3988764294,"17295 Annamark Park","Product Management","fakeemail@howstuffworks.com","howstuffworks.com"]
["Chatterbridge",7271011194,"73028 Stoughton Alley","Legal","fakeemail@over-blog.com","over-blog.com"]
["Chatterpoint",7191729415,"93124 Laurel Junction","Services","fakeemail@harvard.edu","harvard.edu"]
["Chatterpoint",7348707778,"2 Sauthoff Street","Human Resources","fakeemail@seesaa.net","seesaa.net"]
["Chatterpoint",3325750398,"19 Badeau Crossing","Human Resources","fakeemail@about.me","about.me"]
["Chatterpoint",3656482118,"76 Transport Parkway","Legal","fakeemail@ftc.gov","ftc.gov"]
["Chatterpoint",2114762044,"6213 School Alley","Marketing","fakeemail@phoca.cz","phoca.cz"]
["Chatterpoint",7309357456,"86024 Summerview Center","Research and Development","fakeemail@netvibes.com","netvibes.com"]
["Chatterpoint",8584356491,"3336 Mockingbird Point","Human Resources","fakeemail@google.de","google.de"]
["Cogibox",7211041760,"4402 Pine View Drive","Support","fakeemail@cocolog-nifty.com","cocolog-nifty.com"]
["Cogibox",7351655474,"8 Melody Plaza","Business Development","fakeemail@aol.com","aol.com"]
["Cogibox",1113696893,"9 Dakota Road","Legal","fakeemail@seattletimes.com","seattletimes.com"]
["Cogidoo",3888134606,"36669 Fair Oaks Court","Training","fakeemail@xinhuanet.com","xinhuanet.com"]
["Cogilith",5903554253,"32 Park Meadow Parkway","Engineering","fakeemail@tamu.edu","tamu.edu"]
["Cogilith",2212355294,"2 Memorial Court","Business Development","fakeemail@imdb.com","imdb.com"]
["Cogilith",6718474557,"1432 Garrison Alley","Legal","fakeemail@sciencedaily.com","sciencedaily.com"]
["Dabfeed",2047655470,"31473 Comanche Terrace","Sales","fakeemail@google.ca","google.ca"]
["Dabfeed",3658506863,"373 8th Avenue","Support","fakeemail@sun.com","sun.com"]
["Dabfeed",1554543070,"64564 Shopko Circle","Services",{"$f":"\"fakeemail@\"&F131","v":"fakeemail@cocolog-nifty.com"},"cocolog-nifty.com"]
["Dabjam",5546447880,"828 Darwin Circle","Product Management","fakeemail@wiley.com","wiley.com"]
["Dablist",5373851286,"3 Stuart Center","Engineering","fakeemail@ezinearticles.com","ezinearticles.com"]
["Dablist",7784049221,"6335 Continental Road","Business Development","fakeemail@businesswire.com","businesswire.com"]
["Dablist",7121263016,"3 Morning Court","Marketing","fakeemail@feedburner.com","feedburner.com"]
["Dabshots",3575162406,"70188 Clyde Gallagher Terrace","Business Development","fakeemail@techcrunch.com","techcrunch.com"]
["Dabshots",9361615982,"5220 Service Road","Legal","fakeemail@google.ru","google.ru"]
["Dabtype",7893228344,"6515 Burning Wood Park","Product Management","fakeemail@blogs.com","blogs.com"]
["Dabtype",2462674937,"2 Dawn Crossing","Sales","fakeemail@ask.com","ask.com"]
["Dabtype",5282006044,"97 Schlimgen Circle","Business Development","fakeemail@springer.com","springer.com"]
["Dabtype",4579546103,"50891 Northland Avenue","Product Management","fakeemail@desdev.cn","desdev.cn"]
["Dabtype",2592355917,"401 Loeprich Circle","Product Management","fakeemail@gravatar.com","gravatar.com"]
["Dabtype",1198182097,"9 Eastwood Alley","Research and Development","fakeemail@i2i.jp","i2i.jp"]
["Dabvine",4944747001,"78241 Express Crossing","Training","fakeemail@howstuffworks.com","howstuffworks.com"]
["Dabvine",7976243519,"277 Westerfield Road","Sales","fakeemail@wikipedia.org","wikipedia.org"]
["DabZ",5334431011,"580 Prentice Plaza","Legal","fakeemail@joomla.org","joomla.org"]
["DabZ",2742927873,"4451 Lien Avenue","Product Management","fakeemail@google.com","google.com"]
["Dazzlesphere",8403404143,"792 Garrison Terrace","Legal","fakeemail@t.co","t.co"]
["Dazzlesphere",2476353220,"0 Cordelia Pass","Accounting","fakeemail@free.fr","free.fr"]
["Dazzlesphere",6479884113,"2 Huxley Pass","Training","fakeemail@jiathis.com","jiathis.com"]
["Dazzlesphere",8226573251,"02464 Pearson Street","Human Resources","fakeemail@stanford.edu","stanford.edu"]
["Dazzlesphere",9805623471,"78722 West Place","Services","fakeemail@scribd.com","scribd.com"]
["Dazzlesphere",4527771100,"9914 Ridge Oak Crossing","Engineering","fakeemail@utexas.edu","utexas.edu"]
["Dazzlesphere",6002474800,"1032 Fulton Place","Accounting","fakeemail@gmpg.org","gmpg.org"]
["Demimbu",2512685596,"81 Little Fleur Way","Accounting","fakeemail@a8.net","a8.net"]
["Demivee",5145915199,"88240 Elgar Avenue","Support","fakeemail@seesaa.net","seesaa.net"]
["Demivee",8267296084,"37 Farragut Place","Legal","fakeemail@etsy.com","etsy.com"]
["Demivee",7645468980,"6013 Corscot Place","Training","fakeemail@baidu.com","baidu.com"]
["Demivee",1143381633,"76 Mallory Court","Business Development","fakeemail@earthlink.net","earthlink.net"]
["Demivee",3529608689,"5 New Castle Court","Support","fakeemail@upenn.edu","upenn.edu"]
["Demizz",5553549237,"026 Colorado Lane","Engineering","fakeemail@nyu.edu","nyu.edu"]
["Demizz",7066708669,"9367 Knutson Crossing","Engineering","fakeemail@umn.edu","umn.edu"]
["Devbug",1979845215,"767 Oakridge Plaza","Engineering","fakeemail@intel.com","intel.com"]
["Devbug",3387968223,"49 Norway Maple Junction","Engineering","fakeemail@plala.or.jp","plala.or.jp"]
["Devcast",1487284261,"047 Meadow Valley Plaza","Engineering","fakeemail@google.com.hk","google.com.hk"]
["Devcast",7495758471,"26 Scofield Way","Business Development","fakeemail@sourceforge.net","sourceforge.net"]
["Devcast",1248640248,"2191 Cardinal Center","Support","fakeemail@1688.com","1688.com"]
["Devcast",1553959827,"52835 Waywood Hill","Accounting","fakeemail@sfgate.com","sfgate.com"]
["Devcast",8072750684,"59270 Barby Center","Human Resources","fakeemail@nature.com","nature.com"]
["Devify",4523871787,"4054 Park Meadow Circle","Marketing","fakeemail@theatlantic.com","theatlantic.com"]
["Devify",7143479171,"0569 Summer Ridge Lane","Product Management","fakeemail@washingtonpost.com","washingtonpost.com"]
["Devify",6429430476,"45 Jackson Road","Sales","fakeemail@homestead.com","homestead.com"]
["Devpoint",3777655924,"76 Thierer Pass","Marketing","fakeemail@si.edu","si.edu"]
["Devpoint",3117360146,"6277 North Plaza","Legal","fakeemail@tripod.com","tripod.com"]
["Devpoint",9262861622,"2323 Valley Edge Court","Services","fakeemail@topsy.com","topsy.com"]
["Devpoint",2737690656,"16 Fremont Alley","Accounting","fakeemail@time.com","time.com"]
["Devpulse",9032121393,"528 Morrow Park","Research and Development","fakeemail@cafepress.com","cafepress.com"]
["Devpulse",8571557464,"95 Buell Court","Support","fakeemail@altervista.org","altervista.org"]
["Devshare",1717704903,"9 Troy Lane","Sales","fakeemail@mac.com","mac.com"]
["Digitube",2823869045,"77262 Melody Way","Product Management","fakeemail@istockphoto.com","istockphoto.com"]
["Digitube",8615970987,"1453 Sachtjen Junction","Engineering","fakeemail@thetimes.co.uk","thetimes.co.uk"]
["Digitube",5474063235,"1 Monument Parkway","Human Resources","fakeemail@sciencedirect.com","sciencedirect.com"]
["Divanoodle",5102592669,"7041 Bashford Center","Sales","fakeemail@ameblo.jp","ameblo.jp"]
["Divanoodle",1678405912,"67 Starling Junction","Sales","fakeemail@europa.eu","europa.eu"]
["Divape",6022393359,"2752 Dawn Avenue","Support","fakeemail@stumbleupon.com","stumbleupon.com"]
["Divavu",2668566766,"47 4th Hill","Support","fakeemail@usa.gov","usa.gov"]
["Divavu",8675833876,"9471 Quincy Park","Research and Development","fakeemail@tinyurl.com","tinyurl.com"]
["Divavu",7686463910,"441 Carpenter Parkway","Research and Development","fakeemail@wikipedia.org","wikipedia.org"]
["Dynabox",7992345258,"56 Menomonie Court","Business Development","fakeemail@hibu.com","hibu.com"]
["Dynabox",5466794954,"06970 Lake View Avenue","Marketing","fakeemail@google.co.jp","google.co.jp"]
["Dynabox",2512676699,"72 Browning Road","Product Management","fakeemail@ucla.edu","ucla.edu"]
["Dynabox",8789524235,"47 Monterey Way","Sales","fakeemail@addthis.com","addthis.com"]
["Dynabox",3332749382,"591 Florence Hill","Product Management","fakeemail@ameblo.jp","ameblo.jp"]
["Dynabox",8825610237,"1895 Melby Drive","Product Management","fakeemail@qq.com","qq.com"]
["Dynava",7075943897,"05 Mockingbird Plaza","Services",{"$f":"\"fakeemail@\"&F195","v":"fakeemail@alexa.com"},"alexa.com"]
["Dynava",3914307011,"6 Transport Terrace","Human Resources","fakeemail@hugedomains.com","hugedomains.com"]
["Dynava",3801592191,"779 Dorton Center","Legal","fakeemail@huffingtonpost.com","huffingtonpost.com"]
["Dynazzy",6551451448,"6045 Old Gate Drive","Product Management","fakeemail@storify.com","storify.com"]
["Dynazzy",4064219273,"71728 Saint Paul Plaza","Services","fakeemail@google.com.au","google.com.au"]
["Dynazzy",5114326180,"87224 Dayton Hill","Research and Development","fakeemail@dedecms.com","dedecms.com"]
["Eabox",9603980699,"64 Prentice Road","Product Management","fakeemail@hp.com","hp.com"]
["Eabox",2239973751,"17 North Parkway","Training","fakeemail@about.com","about.com"]
["Eabox",6389478400,"4015 Annamark Lane","Sales","fakeemail@paginegialle.it","paginegialle.it"]
["Eabox",1765246460,"3 Holy Cross Drive","Business Development","fakeemail@eventbrite.com","eventbrite.com"]
["Eadel",3575492606,"23252 Bobwhite Place","Business Development","fakeemail@mapquest.com","mapquest.com"]
["Eadel",2149945305,"65 Arkansas Alley","Training","fakeemail@infoseek.co.jp","infoseek.co.jp"]
["Eadel",2218689344,"748 Northfield Park","Business Development","fakeemail@usgs.gov","usgs.gov"]
["Eamia",7033025965,"594 Westport Street","Sales","fakeemail@pinterest.com","pinterest.com"]
["Eare",8403111477,"84 Sutherland Parkway","Legal","fakeemail@tamu.edu","tamu.edu"]
["Eare",8059397840,"29196 Wayridge Parkway","Accounting","fakeemail@upenn.edu","upenn.edu"]
["Eare",9657071189,"91407 Kensington Hill","Legal","fakeemail@amazon.co.jp","amazon.co.jp"]
["Eayo",7832433220,"0197 Artisan Lane","Accounting","fakeemail@yale.edu","yale.edu"]
["Eayo",4259446358,"03 Westerfield Road","Support","fakeemail@huffingtonpost.com","huffingtonpost.com"]
["Eayo",1173350706,"83742 Susan Junction","Training","fakeemail@taobao.com","taobao.com"]
["Eayo",8811237484,"69 Ronald Regan Junction","Training","fakeemail@webnode.com","webnode.com"]
["Eayo",2585633319,"0897 Corscot Point","Business Development","fakeemail@ted.com","ted.com"]
["Eazzy",5712404607,"630 Clove Point","Legal","fakeemail@hostgator.com","hostgator.com"]
["Eazzy",3904854556,"90852 Tennessee Park","Human Resources","fakeemail@weibo.com","weibo.com"]
["Edgeblab",6783409271,"81 2nd Plaza","Support","fakeemail@reference.com","reference.com"]
["Edgeblab",3308987469,"35918 American Point","Sales","fakeemail@state.tx.us","state.tx.us"]
["Edgeblab",7853480327,"43081 Meadow Ridge Alley","Engineering","fakeemail@goo.ne.jp","goo.ne.jp"]
["Edgeify",2805417083,"74 Harper Parkway","Services","fakeemail@goodreads.com","goodreads.com"]
["Edgepulse",4083490548,"2439 Sachs Street","Product Management","fakeemail@telegraph.co.uk","telegraph.co.uk"]
["Edgepulse",6586226179,"249 Weeping Birch Plaza","Training","fakeemail@wikia.com","wikia.com"]
["Edgepulse",1744277122,"53 Dawn Center","Engineering","fakeemail@bing.com","bing.com"]
["Edgepulse",3996863049,"9 Pankratz Point","Research and Development","fakeemail@dagondesign.com","dagondesign.com"]
["Edgepulse",4143998280,"55 Alpine Hill","Business Development","fakeemail@hhs.gov","hhs.gov"]
["Edgepulse",2822315364,"61 Loftsgordon Parkway","Product Management","fakeemail@mapy.cz","mapy.cz"]
["Edgetag",5437664448,"79829 Cambridge Way","Support","fakeemail@booking.com","booking.com"]
["Edgetag",8109424311,"80110 Walton Crossing","Legal","fakeemail@hubpages.com","hubpages.com"]
["Edgewire",2238758527,"0433 Carpenter Park","Sales","fakeemail@mediafire.com","mediafire.com"]
["Edgewire",4043146479,"2 Meadow Ridge Terrace","Business Development","fakeemail@archive.org","archive.org"]
["Eidel",8778315004,"72 Cordelia Alley","Support","fakeemail@opera.com","opera.com"]
["Eimbee",8568233277,"81 Sunbrook Trail","Sales","fakeemail@rambler.ru","rambler.ru"]
["Eimbee",2662374454,"05491 Lerdahl Terrace","Accounting","fakeemail@bigcartel.com","bigcartel.com"]
["Eimbee",6273730946,"041 Iowa Terrace","Marketing","fakeemail@nationalgeographic.com","nationalgeographic.com"]
["Eimbee",7305054865,"88 Granby Avenue","Legal","fakeemail@last.fm","last.fm"]
["Eimbee",7904084974,"30 Rowland Crossing","Services","fakeemail@mozilla.com","mozilla.com"]
["Einti",6486721136,"3045 Lawn Pass","Product Management","fakeemail@google.ru","google.ru"]
["Einti",1994581360,"14 Marquette Avenue","Training","fakeemail@foxnews.com","foxnews.com"]
["Einti",5674670809,"27460 Meadow Valley Junction","Services","fakeemail@amazon.co.jp","amazon.co.jp"]
["Eire",7583738325,"9 Kennedy Parkway","Product Management","fakeemail@uol.com.br","uol.com.br"]
["Fadeo",6671356117,"51 Truax Way","Research and Development","fakeemail@amazonaws.com","amazonaws.com"]
["Fadeo",1709262805,"7 Elka Trail","Training","fakeemail@dedecms.com","dedecms.com"]
["Fadeo",5914280524,"830 Boyd Avenue","Accounting","fakeemail@dailymail.co.uk","dailymail.co.uk"]
["Fanoodle",8574673402,"99 8th Center","Training","fakeemail@forbes.com","forbes.com"]
["Fanoodle",3062843750,"2 Havey Point","Product Management","fakeemail@wikia.com","wikia.com"]
["Fanoodle",7084022875,"62219 Acker Way","Engineering","fakeemail@digg.com","digg.com"]
["Fanoodle",4132722767,"357 Moose Street","Sales","fakeemail@imageshack.us","imageshack.us"]
["Fatz",8342899699,"766 Northport Center","Engineering","fakeemail@yelp.com","yelp.com"]
["Feedbug",6863120288,"76348 Waxwing Plaza","Business Development","fakeemail@redcross.org","redcross.org"]
["Feedbug",2504347281,"16192 Gerald Street","Product Management","fakeemail@mlb.com","mlb.com"]
["Feedfire",8921618712,"60398 Warbler Crossing","Legal","fakeemail@buzzfeed.com","buzzfeed.com"]
["Feedfire",3981625429,"35 Menomonie Lane","Engineering","fakeemail@ed.gov","ed.gov"]
["Feedfire",7663440500,"04 Surrey Parkway","Accounting","fakeemail@pen.io","pen.io"]
["Feedfish",6876132810,"38972 Grover Parkway","Business Development","fakeemail@paginegialle.it","paginegialle.it"]
["Feedfish",6768034652,"66294 Acker Drive","Research and Development","fakeemail@facebook.com","facebook.com"]
["Feedmix",2855230454,"5 Knutson Pass","Engineering","fakeemail@indiatimes.com","indiatimes.com"]
["Feednation",2501567217,"15 Toban Parkway","Accounting",{"$f":"\"fakeemail@\"&F259","v":"fakeemail@salon.com"},"salon.com"]
["Feednation",6326864715,"912 Basil Alley","Accounting","fakeemail@posterous.com","posterous.com"]
["Feedspan",7465188530,"374 Grayhawk Point","Business Development","fakeemail@51.la","51.la"]
["Feedspan",1815827649,"8 Merry Alley","Support","fakeemail@hugedomains.com","hugedomains.com"]
["Fivebridge",6439598010,"41 Farragut Court","Sales","fakeemail@discuz.net","discuz.net"]
["Fivebridge",9657818871,"43120 Westport Circle","Support","fakeemail@yelp.com","yelp.com"]
["Fivebridge",5749058025,"2 Cascade Way","Marketing","fakeemail@psu.edu","psu.edu"]
["Fivechat",5828928336,"65742 Dryden Crossing","Product Management","fakeemail@illinois.edu","illinois.edu"]
["Fiveclub",9038293381,"127 Maple Wood Plaza","Services","fakeemail@odnoklassniki.ru","odnoklassniki.ru"]
["Fivespan",2256518556,"3 Hayes Junction","Human Resources","fakeemail@facebook.com","facebook.com"]
["Fivespan",3433211888,"6 Dakota Point","Human Resources","fakeemail@pen.io","pen.io"]
["Flashdog",9079125633,"9487 Ronald Regan Street","Engineering","fakeemail@tumblr.com","tumblr.com"]
["Flashdog",3368142269,"1 Spaight Way","Legal","fakeemail@infoseek.co.jp","infoseek.co.jp"]
["Flashdog",2805233917,"0 Waubesa Trail","Support","fakeemail@issuu.com","issuu.com"]
["Flashpoint",8099917653,"01125 Mitchell Point","Legal","fakeemail@blinklist.com","blinklist.com"]
["Flashpoint",5669351781,"59 Del Sol Plaza","Legal","fakeemail@smh.com.au","smh.com.au"]
["Flashset",4214096938,"812 Dakota Junction","Support","fakeemail@pbs.org","pbs.org"]
["Flashset",5862662547,"45335 Hoffman Plaza","Legal","fakeemail@canalblog.com","canalblog.com"]
["Flashspan",8084316359,"21 Tennessee Lane","Training","fakeemail@miitbeian.gov.cn","miitbeian.gov.cn"]
["Flipbug",7949835554,"8 Tomscot Trail","Sales","fakeemail@bing.com","bing.com"]
["Flipopia",1453783848,"4 Barnett Park","Research and Development","fakeemail@craigslist.org","craigslist.org"]
["Flipopia",7555092760,"47903 4th Point","Legal","fakeemail@paginegialle.it","paginegialle.it"]
["Flipstorm",5167829119,"622 Doe Crossing Park","Product Management","fakeemail@artisteer.com","artisteer.com"]
["Flipstorm",1039588096,"10826 Hazelcrest Crossing","Product Management","fakeemail@google.co.jp","google.co.jp"]
["Fliptune",2406166143,"4260 Lotheville Pass","Legal","fakeemail@adobe.com","adobe.com"]
["Gabcube",5321609557,"87295 Declaration Center","Accounting","fakeemail@opensource.org","opensource.org"]
["Gabcube",9376921777,"7916 Schlimgen Hill","Training","fakeemail@ibm.com","ibm.com"]
["Gabspot",7827214916,"066 Stuart Pass","Human Resources","fakeemail@behance.net","behance.net"]
["Gabspot",7665687926,"866 Talisman Hill","Business Development","fakeemail@smugmug.com","smugmug.com"]
["Gabspot",8179240971,"60181 Ronald Regan Crossing","Marketing","fakeemail@omniture.com","omniture.com"]
["Gabspot",4262044031,"857 Harper Circle","Sales","fakeemail@prweb.com","prweb.com"]
["Gabtune",7025299378,"34698 Aberg Court","Services","fakeemail@indiegogo.com","indiegogo.com"]
["Gabtune",7933296339,"59369 Sunnyside Place","Research and Development","fakeemail@youku.com","youku.com"]
["Gabtune",4695062136,"221 Dovetail Road","Services","fakeemail@cdbaby.com","cdbaby.com"]
["Gabtype",3295638382,"53 Prairie Rose Street","Accounting","fakeemail@friendfeed.com","friendfeed.com"]
["Gabtype",6665405112,"9 Morrow Pass","Accounting","fakeemail@nifty.com","nifty.com"]
["Gabtype",7964784370,"380 Buena Vista Lane","Legal","fakeemail@hhs.gov","hhs.gov"]
["Gabtype",2863750755,"82029 Vidon Way","Training","fakeemail@forbes.com","forbes.com"]
["Gabtype",3754962329,"40 Delaware Park","Training","fakeemail@mashable.com","mashable.com"]
["Gabvine",7973649845,"735 Hollow Ridge Park","Services","fakeemail@virginia.edu","virginia.edu"]
["Gabvine",3892821520,"37453 Leroy Plaza","Sales","fakeemail@statcounter.com","statcounter.com"]
["Gabvine",9654402996,"53090 Dryden Way","Legal","fakeemail@people.com.cn","people.com.cn"]
["Geba",6767159131,"5 Maple Wood Trail","Research and Development","fakeemail@free.fr","free.fr"]
["Gevee",5492426827,"6 Raven Parkway","Research and Development","fakeemail@php.net","php.net"]
["Gevee",4835712446,"44 Manufacturers Center","Sales","fakeemail@studiopress.com","studiopress.com"]
["Gigabox",4429967753,"19039 Kenwood Crossing","Engineering","fakeemail@i2i.jp","i2i.jp"]
["Gigabox",4919080409,"99 Scoville Avenue","Engineering","fakeemail@comcast.net","comcast.net"]
["Gigabox",5966384232,"6 Esch Avenue","Engineering","fakeemail@marriott.com","marriott.com"]
["Gigaclub",5552926984,"16655 Service Crossing","Sales","fakeemail@oracle.com","oracle.com"]
["Gigaclub",3217444780,"28 Lyons Lane","Services","fakeemail@drupal.org","drupal.org"]
["Gigaclub",5687791408,"04377 Waywood Park","Support","fakeemail@ustream.tv","ustream.tv"]
["Gigaclub",3492211668,"7 Mifflin Drive","Engineering","fakeemail@comcast.net","comcast.net"]
["Gigaclub",7291348570,"42 Granby Drive","Support","fakeemail@princeton.edu","princeton.edu"]
["Gigashots",8999127004,"9571 Trailsway Road","Product Management","fakeemail@dailymail.co.uk","dailymail.co.uk"]
["Gigashots",3601579603,"1 Moose Avenue","Research and Development","fakeemail@acquirethisname.com","acquirethisname.com"]
["Gigazoom",3113089924,"35 Delladonna Crossing","Sales","fakeemail@hhs.gov","hhs.gov"]
["Gigazoom",2094972690,"83 Superior Court","Sales","fakeemail@xing.com","xing.com"]
["Innojam",1222219633,"72 Tennessee Alley","Accounting","fakeemail@youku.com","youku.com"]
["Innojam",6887516308,"8 Granby Court","Research and Development","fakeemail@mail.ru","mail.ru"]
["InnoZ",1644736720,"3817 Reinke Point","Legal","fakeemail@mac.com","mac.com"]
["InnoZ",8316717783,"6934 Dennis Park","Business Development","fakeemail@mysql.com","mysql.com"]
["InnoZ",7119834628,"98 Leroy Place","Product Management","fakeemail@va.gov","va.gov"]
["Izio",1669432080,"47025 La Follette Court","Training","fakeemail@ibm.com","ibm.com"]
["Izio",4073407078,"14624 Fairview Crossing","Accounting","fakeemail@who.int","who.int"]
["Jabberbean",7648743823,"16 Maywood Hill","Sales",{"$f":"\"fakeemail@\"&F323","v":"fakeemail@comcast.net"},"comcast.net"]
["Jabberbean",3263515981,"093 Mayfield Pass","Engineering","fakeemail@stanford.edu","stanford.edu"]
["Jabberbean",4303981704,"093 Old Shore Way","Services","fakeemail@ameblo.jp","ameblo.jp"]
["Jabberbean",6363440914,"79 Claremont Plaza","Sales","fakeemail@51.la","51.la"]
["Jabbercube",2715223098,"66805 Meadow Vale Avenue","Human Resources","fakeemail@globo.com","globo.com"]
["Jabbercube",3053846633,"06 Loomis Plaza","Business Development","fakeemail@unicef.org","unicef.org"]
["Jabbercube",7731346028,"9 Vidon Hill","Sales","fakeemail@home.pl","home.pl"]
["Jabbersphere",9732392222,"489 Dryden Terrace","Services","fakeemail@unc.edu","unc.edu"]
["Jabbersphere",7036433982,"802 Mariners Cove Plaza","Engineering","fakeemail@fema.gov","fema.gov"]
["Jabbersphere",8397526594,"28 Fulton Alley","Business Development","fakeemail@simplemachines.org","simplemachines.org"]
["Jabbersphere",2417640029,"4133 1st Junction","Sales","fakeemail@home.pl","home.pl"]
["Jabbersphere",2842794152,"5404 Karstens Plaza","Research and Development","fakeemail@jalbum.net","jalbum.net"]
["Jabbersphere",6572709716,"91857 Village Green Center","Support","fakeemail@wikia.com","wikia.com"]
["Jabbersphere",2512414839,"6 Meadow Vale Junction","Legal","fakeemail@google.pl","google.pl"]
["Jabberstorm",9531190257,"18 Westridge Road","Legal","fakeemail@vk.com","vk.com"]
["Jabberstorm",5981091904,"1 Vidon Junction","Business Development","fakeemail@tinypic.com","tinypic.com"]
["Jabberstorm",7339676489,"33 Alpine Alley","Business Development","fakeemail@devhub.com","devhub.com"]
["Jabberstorm",7542389405,"0 Bellgrove Center","Accounting","fakeemail@narod.ru","narod.ru"]
["Jabbertype",7439717056,"407 Harbort Crossing","Engineering","fakeemail@dailymotion.com","dailymotion.com"]
["Jaloo",7812052657,"83 Carey Circle","Legal","fakeemail@rakuten.co.jp","rakuten.co.jp"]
["Jaloo",8518558986,"4958 Maple Wood Pass","Services","fakeemail@walmart.com","walmart.com"]
["Jaloo",8315010591,"68 Rieder Junction","Legal","fakeemail@ow.ly","ow.ly"]
["Jaloo",9381153315,"8116 Truax Circle","Research and Development","fakeemail@walmart.com","walmart.com"]
["Jaloo",5551644113,"20 Merchant Trail","Sales","fakeemail@state.gov","state.gov"]
["Jaloo",9124682968,"835 Kim Park","Research and Development","fakeemail@cafepress.com","cafepress.com"]
["Jamia",5318262275,"62031 Kennedy Park","Product Management","fakeemail@digg.com","digg.com"]
["Jamia",8347625835,"13 Clarendon Way","Research and Development","fakeemail@twitter.com","twitter.com"]
["Jamia",7454832392,"80408 Shopko Terrace","Accounting","fakeemail@deliciousdays.com","deliciousdays.com"]
["Jamia",1991492625,"33259 Farwell Drive","Engineering","fakeemail@chron.com","chron.com"]
["Jatri",8171615473,"33 Sutteridge Street","Human Resources","fakeemail@1und1.de","1und1.de"]
["Jatri",7227662820,"47297 Mayer Plaza","Support","fakeemail@alibaba.com","alibaba.com"]
["Jatri",9255375897,"734 Fairview Drive","Human Resources","fakeemail@histats.com","histats.com"]
["Jaxbean",7805840560,"9 American Ash Road","Human Resources","fakeemail@prweb.com","prweb.com"]
["Jaxbean",8875170732,"69 Eggendart Lane","Services","fakeemail@google.com.au","google.com.au"]
["Jaxspan",8752750805,"102 East Parkway","Sales","fakeemail@youtu.be","youtu.be"]
["Jaxspan",7615677395,"300 Toban Road","Human Resources","fakeemail@foxnews.com","foxnews.com"]
["Jaxworks",5104812753,"28615 Porter Place","Engineering","fakeemail@skyrock.com","skyrock.com"]
["Jaxworks",1594539439,"7670 Hanson Park","Accounting","fakeemail@slideshare.net","slideshare.net"]
["Jaxworks",3103129106,"8 Kropf Road","Legal","fakeemail@webs.com","webs.com"]
["Jayo",2117478154,"11 Crest Line Court","Human Resources","fakeemail@epa.gov","epa.gov"]
["Jayo",3942608710,"5 Mallory Park","Training","fakeemail@amazon.de","amazon.de"]
["Jayo",7169687905,"141 Clarendon Junction","Legal","fakeemail@ustream.tv","ustream.tv"]
["Jayo",1893952112,"64999 Eastlawn Center","Business Development","fakeemail@sphinn.com","sphinn.com"]
["Jazzy",3012154997,"4746 Graedel Hill","Business Development","fakeemail@adobe.com","adobe.com"]
["Jazzy",1612980573,"57933 Dakota Point","Accounting","fakeemail@nyu.edu","nyu.edu"]
["Jazzy",6998895413,"42 Cottonwood Parkway","Human Resources","fakeemail@washingtonpost.com","washingtonpost.com"]
["Jazzy",1787932539,"6 Bluejay Park","Legal","fakeemail@quantcast.com","quantcast.com"]
["Jetwire",9366741590,"4 Saint Paul Street","Services","fakeemail@ihg.com","ihg.com"]
["JumpXS",6012442859,"5371 Autumn Leaf Avenue","Research and Development","fakeemail@fc2.com","fc2.com"]
["Kamba",8804557947,"36 2nd Plaza","Support","fakeemail@hp.com","hp.com"]
["Kamba",4423825802,"89730 Rusk Place","Human Resources","fakeemail@bravesites.com","bravesites.com"]
["Kamba",4219591719,"8129 Old Shore Road","Marketing","fakeemail@usda.gov","usda.gov"]
["Kamba",8327567842,"907 Nobel Parkway","Product Management","fakeemail@unicef.org","unicef.org"]
["Kanoodle",1199593266,"09 Raven Place","Business Development","fakeemail@bizjournals.com","bizjournals.com"]
["Kanoodle",2476908072,"0 Delladonna Lane","Legal","fakeemail@alexa.com","alexa.com"]
["Kanoodle",5714797494,"0334 Rutledge Place","Marketing","fakeemail@smh.com.au","smh.com.au"]
["Kanoodle",5096478274,"340 Sachs Hill","Human Resources","fakeemail@typepad.com","typepad.com"]
["Kanoodle",7791266737,"2 Oneill Plaza","Engineering","fakeemail@spiegel.de","spiegel.de"]
["Kare",5906856993,"6707 Old Shore Way","Engineering","fakeemail@amazon.co.jp","amazon.co.jp"]
["Katz",9435032655,"0751 Tony Lane","Legal","fakeemail@friendfeed.com","friendfeed.com"]
["Katz",5278642929,"682 Park Meadow Trail","Legal","fakeemail@ask.com","ask.com"]
["Katz",4161743586,"76 Crowley Way","Legal","fakeemail@stanford.edu","stanford.edu"]
["Kaymbo",3093469927,"23365 Shasta Junction","Business Development","fakeemail@ehow.com","ehow.com"]
["Kayveo",5726647785,"06 Stuart Crossing","Business Development","fakeemail@cmu.edu","cmu.edu"]
["Kayveo",9418441642,"1 Holy Cross Point","Business Development",{"$f":"\"fakeemail@\"&F387","v":"fakeemail@facebook.com"},"facebook.com"]
["Kayveo",6671501586,"65993 Michigan Trail","Accounting","fakeemail@tripadvisor.com","tripadvisor.com"]
["Kayveo",6876143355,"6984 West Place","Legal","fakeemail@nba.com","nba.com"]
["Kazio",4168721402,"2758 New Castle Parkway","Sales","fakeemail@microsoft.com","microsoft.com"]
["Kazio",5217978736,"510 Johnson Terrace","Business Development","fakeemail@hugedomains.com","hugedomains.com"]
["Kimia",6407562379,"84596 School Crossing","Legal","fakeemail@alibaba.com","alibaba.com"]
["Kimia",8323515735,"682 Shelley Crossing","Accounting","fakeemail@lycos.com","lycos.com"]
["Kimia",8006536723,"16 Golf View Road","Marketing","fakeemail@nymag.com","nymag.com"]
["Kimia",7274608531,"7946 Darwin Drive","Services","fakeemail@google.com","google.com"]
["Kimia",3644319558,"3899 Rockefeller Way","Product Management","fakeemail@zimbio.com","zimbio.com"]
["Kwideo",8064973884,"1638 Jana Street","Accounting","fakeemail@blinklist.com","blinklist.com"]
["Kwilith",2619163378,"1 Spaight Lane","Product Management","fakeemail@gmpg.org","gmpg.org"]
["Kwilith",8916669171,"88 Straubel Plaza","Business Development","fakeemail@ebay.com","ebay.com"]
["Kwilith",4476508308,"509 Debs Circle","Training","fakeemail@posterous.com","posterous.com"]
["Kwimbee",5986177461,"2 Lakewood Court","Marketing","fakeemail@hexun.com","hexun.com"]
["Kwimbee",3532656016,"018 Russell Drive","Support","fakeemail@who.int","who.int"]
["Kwimbee",9939078119,"36 Weeping Birch Point","Sales","fakeemail@ow.ly","ow.ly"]
["Kwimbee",8826178249,"80510 Spohn Alley","Business Development","fakeemail@pcworld.com","pcworld.com"]
["Kwinu",2755375702,"9 Chive Parkway","Human Resources","fakeemail@bluehost.com","bluehost.com"]
["Lajo",6087349030,"39 Eagle Crest Road","Training","fakeemail@army.mil","army.mil"]
["Lajo",3018412913,"2026 Briar Crest Court","Accounting","fakeemail@buzzfeed.com","buzzfeed.com"]
["Latz",3032160237,"442 Graedel Pass","Marketing","fakeemail@prlog.org","prlog.org"]
["Latz",2806720086,"1590 Johnson Court","Engineering","fakeemail@jigsy.com","jigsy.com"]
["Latz",8832479543,"050 Spohn Center","Training","fakeemail@ft.com","ft.com"]
["Latz",7632262630,"73227 Hintze Park","Research and Development","fakeemail@hp.com","hp.com"]
["Latz",9657682517,"4 Pine View Alley","Business Development","fakeemail@paginegialle.it","paginegialle.it"]
["Layo",5633819484,"2356 Carberry Drive","Accounting","fakeemail@mozilla.org","mozilla.org"]
["Layo",7193281544,"856 Park Meadow Crossing","Marketing","fakeemail@seattletimes.com","seattletimes.com"]
["Layo",8876520521,"834 Washington Point","Human Resources","fakeemail@si.edu","si.edu"]
["Layo",3211533915,"8991 Oriole Place","Research and Development","fakeemail@t-online.de","t-online.de"]
["Layo",8147533727,"734 Hermina Hill","Services","fakeemail@blogspot.com","blogspot.com"]
["Lazz",1024742736,"56791 Claremont Alley","Legal","fakeemail@webmd.com","webmd.com"]
["Lazz",7039367880,"4873 Sutteridge Court","Training","fakeemail@ning.com","ning.com"]
["Lazz",6437280812,"86 Harbort Point","Engineering","fakeemail@deliciousdays.com","deliciousdays.com"]
["Lazzy",1249312486,"90359 Katie Terrace","Services","fakeemail@imgur.com","imgur.com"]
["Lazzy",7656777068,"62 Pleasure Lane","Sales","fakeemail@irs.gov","irs.gov"]
["Lazzy",4333383703,"4846 Dunning Way","Training","fakeemail@cafepress.com","cafepress.com"]
["Lazzy",7977178935,"7 Leroy Parkway","Business Development","fakeemail@networkadvertising.org","networkadvertising.org"]
["Lazzy",7653023847,"0394 Ridgeway Way","Sales","fakeemail@examiner.com","examiner.com"]
["Leenti",8323908028,"79727 Stephen Point","Services","fakeemail@un.org","un.org"]
["Leenti",3484757191,"656 Toban Avenue","Services","fakeemail@umn.edu","umn.edu"]
["Leexo",5809349910,"69208 Sage Terrace","Services","fakeemail@dot.gov","dot.gov"]
["Linkbridge",9789547642,"050 Truax Park","Engineering","fakeemail@dailymail.co.uk","dailymail.co.uk"]
["Linkbuzz",2753008041,"8 Grim Way","Business Development","fakeemail@mit.edu","mit.edu"]
["Linkbuzz",9903118471,"24062 Sullivan Way","Engineering","fakeemail@com.com","com.com"]
["Linklinks",6814411013,"159 Dennis Circle","Product Management","fakeemail@bloglovin.com","bloglovin.com"]
["Linklinks",2053647923,"1890 Nelson Lane","Product Management","fakeemail@home.pl","home.pl"]
["Linklinks",8814105486,"00 Luster Hill","Sales","fakeemail@furl.net","furl.net"]
["Linktype",7112569912,"09 Hintze Road","Sales","fakeemail@examiner.com","examiner.com"]
["Livefish",5194028399,"19 Westport Plaza","Business Development","fakeemail@yale.edu","yale.edu"]
["Livefish",9123442456,"6 Arapahoe Center","Services","fakeemail@smugmug.com","smugmug.com"]
["Livepath",6861020322,"387 Muir Way","Research and Development","fakeemail@foxnews.com","foxnews.com"]
["Livepath",5853332019,"3 Waxwing Street","Accounting","fakeemail@xrea.com","xrea.com"]
["Livepath",9854186912,"2 Swallow Point","Support","fakeemail@reference.com","reference.com"]
["Livepath",2703711919,"258 Macpherson Road","Services","fakeemail@amazon.de","amazon.de"]
["Livepath",5773535462,"9109 Forster Road","Human Resources","fakeemail@pbs.org","pbs.org"]
["Livetube",4245909666,"88 Melvin Crossing","Training","fakeemail@nytimes.com","nytimes.com"]
["Livetube",6203218059,"582 Daystar Avenue","Support","fakeemail@g.co","g.co"]
["Livetube",4548572861,"88094 Village Green Alley","Marketing","fakeemail@plala.or.jp","plala.or.jp"]
["Livetube",5115642037,"71 Hauk Terrace","Product Management","fakeemail@devhub.com","devhub.com"]
["Livetube",7192365103,"608 Carberry Avenue","Support","fakeemail@parallels.com","parallels.com"]
["Livetube",6031555152,"3 Carey Court","Business Development","fakeemail@reddit.com","reddit.com"]
["Livetube",8401594282,"31 Magdeline Drive","Human Resources","fakeemail@xrea.com","xrea.com"]
["Livetube",9988880385,"598 Lukken Hill","Research and Development","fakeemail@deviantart.com","deviantart.com"]
["Livetube",5276386885,"61 Gateway Place","Human Resources",{"$f":"\"fakeemail@\"&F451","v":"fakeemail@slashdot.org"},"slashdot.org"]
["Livetube",6473798494,"3865 Becker Circle","Training","fakeemail@seattletimes.com","seattletimes.com"]
["Livetube",3387130459,"7327 Coolidge Crossing","Training","fakeemail@wp.com","wp.com"]
["LiveZ",8278661878,"590 Service Trail","Accounting","fakeemail@mit.edu","mit.edu"]
["LiveZ",2769664734,"2787 Fulton Circle","Research and Development","fakeemail@discuz.net","discuz.net"]
["LiveZ",8691241239,"1 Glendale Parkway","Marketing","fakeemail@thetimes.co.uk","thetimes.co.uk"]
["Meedoo",8402067094,"910 Armistice Drive","Accounting","fakeemail@about.com","about.com"]
["Meedoo",6828627782,"1985 Ridgeview Terrace","Product Management","fakeemail@china.com.cn","china.com.cn"]
["Meejo",9124879755,"84 Debra Street","Engineering","fakeemail@cbsnews.com","cbsnews.com"]
["Meembee",1781354266,"06331 Upham Center","Services","fakeemail@hexun.com","hexun.com"]
["Meemm",5446176485,"76 Lerdahl Junction","Marketing","fakeemail@rambler.ru","rambler.ru"]
["Meemm",1049344952,"5391 Kennedy Way","Research and Development","fakeemail@privacy.gov.au","privacy.gov.au"]
["Meemm",6311778516,"200 Hintze Alley","Support","fakeemail@thetimes.co.uk","thetimes.co.uk"]
["Meetz",4425037256,"34 Corben Trail","Human Resources","fakeemail@pinterest.com","pinterest.com"]
["Meevee",2955579750,"6 Bunker Hill Court","Legal","fakeemail@disqus.com","disqus.com"]
["Meevee",4827929154,"633 Derek Road","Human Resources","fakeemail@oaic.gov.au","oaic.gov.au"]
["Meevee",8198538622,"1 Gerald Trail","Product Management","fakeemail@washington.edu","washington.edu"]
["Meevee",7905058456,"8 Summerview Parkway","Services","fakeemail@ft.com","ft.com"]
["Meevee",4662595981,"05212 Saint Paul Plaza","Research and Development","fakeemail@wix.com","wix.com"]
["Meevee",5228109019,"7255 Portage Road","Human Resources","fakeemail@alexa.com","alexa.com"]
["Meeveo",3237583291,"43 Declaration Lane","Accounting","fakeemail@exblog.jp","exblog.jp"]
["Meezzy",7317677970,"51 Debs Hill","Services","fakeemail@msn.com","msn.com"]
["Meezzy",8828674064,"4 Melrose Center","Marketing","fakeemail@tmall.com","tmall.com"]
["Meezzy",9313253315,"84476 Alpine Trail","Research and Development","fakeemail@unesco.org","unesco.org"]
["Meezzy",4293160290,"15 Debra Point","Research and Development","fakeemail@wp.com","wp.com"]
["Meezzy",4333831450,"7664 Rowland Parkway","Sales","fakeemail@technorati.com","technorati.com"]
["Miboo",8988429809,"44452 Schurz Street","Legal","fakeemail@imageshack.us","imageshack.us"]
["Miboo",5275974695,"22 Pleasure Crossing","Research and Development","fakeemail@wired.com","wired.com"]
["Midel",3041650387,"46 Jenifer Way","Research and Development","fakeemail@1und1.de","1und1.de"]
["Midel",8279174567,"7320 Northridge Terrace","Product Management","fakeemail@wikipedia.org","wikipedia.org"]
["Midel",7608850884,"96663 Eggendart Hill","Research and Development","fakeemail@reuters.com","reuters.com"]
["Minyx",5807569337,"96 Gulseth Point","Marketing","fakeemail@php.net","php.net"]
["Minyx",5434599968,"9021 Del Sol Point","Marketing","fakeemail@mac.com","mac.com"]
["Minyx",1722021403,"1427 Grayhawk Lane","Support","fakeemail@tripadvisor.com","tripadvisor.com"]
["Mita",8525259173,"26954 Lighthouse Bay Park","Accounting","fakeemail@irs.gov","irs.gov"]
["Mita",5467686275,"2 Schlimgen Point","Product Management","fakeemail@acquirethisname.com","acquirethisname.com"]
["Mudo",6114895551,"6 Hansons Place","Research and Development","fakeemail@soundcloud.com","soundcloud.com"]
["Mudo",1678170765,"31 Morning Plaza","Human Resources","fakeemail@bbb.org","bbb.org"]
["Mudo",1178141331,"65 5th Hill","Human Resources","fakeemail@usda.gov","usda.gov"]
["Muxo",2602386210,"0 Lyons Center","Support","fakeemail@naver.com","naver.com"]
["Muxo",1246263755,"841 Blue Bill Park Plaza","Product Management","fakeemail@multiply.com","multiply.com"]
["Muxo",5042952879,"7 Hooker Pass","Legal","fakeemail@bravesites.com","bravesites.com"]
["Mybuzz",9492108973,"3 Karstens Center","Research and Development","fakeemail@linkedin.com","linkedin.com"]
["Mybuzz",8204966278,"95817 Loftsgordon Circle","Accounting","fakeemail@indiegogo.com","indiegogo.com"]
["Mycat",7241401452,"3 Harbort Drive","Product Management","fakeemail@live.com","live.com"]
["Mycat",8377068973,"36205 Clarendon Point","Product Management","fakeemail@jimdo.com","jimdo.com"]
["Mycat",5192841862,"72114 John Wall Way","Legal","fakeemail@guardian.co.uk","guardian.co.uk"]
["Mycat",2494984124,"0666 Starling Way","Legal","fakeemail@ocn.ne.jp","ocn.ne.jp"]
["Mydo",2195494423,"82 Ludington Trail","Engineering","fakeemail@baidu.com","baidu.com"]
["Mymm",6203340567,"2258 Annamark Court","Engineering","fakeemail@mapquest.com","mapquest.com"]
["Mymm",2575178922,"14 8th Road","Training","fakeemail@cdbaby.com","cdbaby.com"]
["Mymm",8267389185,"918 Sachtjen Court","Business Development","fakeemail@clickbank.net","clickbank.net"]
["Mymm",3941556821,"38 High Crossing Trail","Sales","fakeemail@nifty.com","nifty.com"]
["Mynte",8039576801,"8509 Chive Avenue","Engineering","fakeemail@themeforest.net","themeforest.net"]
["Nlounge",3457428843,"71 Continental Street","Services","fakeemail@skype.com","skype.com"]
["Nlounge",3301971732,"7 Hagan Junction","Training","fakeemail@live.com","live.com"]
["Nlounge",1274876466,"74 Ramsey Pass","Marketing","fakeemail@hexun.com","hexun.com"]
["Nlounge",5131569962,"95275 Kedzie Lane","Human Resources","fakeemail@merriam-webster.com","merriam-webster.com"]
["Npath",8296619801,"613 Sloan Pass","Business Development","fakeemail@nature.com","nature.com"]
["Npath",5325659543,"2 Paget Way","Legal","fakeemail@pen.io","pen.io"]
["Npath",3516737919,"27979 Judy Way","Services","fakeemail@ow.ly","ow.ly"]
["Ntag",5713968805,"6255 Hanover Road","Human Resources","fakeemail@theatlantic.com","theatlantic.com"]
["Ntag",6955888043,"210 Stone Corner Parkway","Marketing","fakeemail@newsvine.com","newsvine.com"]
["Oba",4228962522,"1555 Sutherland Court","Legal","fakeemail@bandcamp.com","bandcamp.com"]
["Oloo",5652223082,"27 Prairie Rose Crossing","Research and Development",{"$f":"\"fakeemail@\"&F515","v":"fakeemail@delicious.com"},"delicious.com"]
["Omba",8313751833,"91688 Buena Vista Terrace","Training","fakeemail@reverbnation.com","reverbnation.com"]
["Ooba",1679888763,"56 Dovetail Hill","Support","fakeemail@tuttocitta.it","tuttocitta.it"]
["Ooba",6083455425,"67743 Di Loreto Drive","Research and Development","fakeemail@biblegateway.com","biblegateway.com"]
["Ooba",1204984757,"24 Summit Way","Training","fakeemail@google.pl","google.pl"]
["Ooba",8605464911,"55 Pankratz Hill","Business Development","fakeemail@nature.com","nature.com"]
["Ooba",3267480897,"597 Mandrake Pass","Legal","fakeemail@skype.com","skype.com"]
["Ooba",6959982767,"6 Huxley Crossing","Support","fakeemail@wufoo.com","wufoo.com"]
["Oodoo",8343272003,"8311 Sutherland Circle","Marketing","fakeemail@forbes.com","forbes.com"]
["Oodoo",5452012593,"85825 Waywood Parkway","Legal","fakeemail@wikia.com","wikia.com"]
["Oodoo",3411576454,"9 Milwaukee Court","Human Resources","fakeemail@fema.gov","fema.gov"]
["Oyoba",3865271372,"28623 Porter Hill","Human Resources","fakeemail@newsvine.com","newsvine.com"]
["Oyoloo",2349264759,"85 Kennedy Crossing","Marketing","fakeemail@wired.com","wired.com"]
["Oyoloo",7635521547,"445 1st Hill","Engineering","fakeemail@rambler.ru","rambler.ru"]
["Oyoloo",9416401440,"0 Lake View Place","Business Development","fakeemail@chronoengine.com","chronoengine.com"]
["Oyonder",9464444781,"624 American Ash Park","Training","fakeemail@deviantart.com","deviantart.com"]
["Oyonder",2689748796,"6847 Morrow Terrace","Sales","fakeemail@nydailynews.com","nydailynews.com"]
["Oyonder",6568310277,"049 Michigan Hill","Business Development","fakeemail@un.org","un.org"]
["Oyonder",9378080212,"69 Carioca Crossing","Engineering","fakeemail@businesswire.com","businesswire.com"]
["Oyondu",1445713286,"673 Sachs Court","Services","fakeemail@creativecommons.org","creativecommons.org"]
["Oyondu",7327874317,"752 Delaware Street","Marketing","fakeemail@booking.com","booking.com"]
["Oyondu",9857279794,"2124 Sheridan Circle","Services","fakeemail@amazon.de","amazon.de"]
["Oyope",3603993021,"405 Pleasure Lane","Support","fakeemail@about.me","about.me"]
["Oyope",6823979414,"4 Evergreen Lane","Accounting","fakeemail@sohu.com","sohu.com"]
["Oyope",7531443450,"6488 Artisan Circle","Accounting","fakeemail@barnesandnoble.com","barnesandnoble.com"]
["Oyope",2183636755,"09897 South Avenue","Legal","fakeemail@facebook.com","facebook.com"]
["Oyoyo",2902327497,"78 Reindahl Pass","Human Resources","fakeemail@shutterfly.com","shutterfly.com"]
["Oyoyo",1092639450,"912 Manley Road","Product Management","fakeemail@paypal.com","paypal.com"]
["Ozu",6442380618,"50 Eggendart Junction","Training","fakeemail@cornell.edu","cornell.edu"]
["Ozu",4386269935,"01970 Village Green Road","Sales","fakeemail@linkedin.com","linkedin.com"]
["Ozu",6581872486,"70 Stephen Park","Services","fakeemail@desdev.cn","desdev.cn"]
["Ozu",6232438037,"19544 Kings Avenue","Legal","fakeemail@mit.edu","mit.edu"]
["Photobean",6051043717,"89 Novick Parkway","Accounting","fakeemail@list-manage.com","list-manage.com"]
["Photobean",2397188543,"75 Superior Road","Product Management","fakeemail@symantec.com","symantec.com"]
["Photobean",7878980253,"5 Hoepker Circle","Human Resources","fakeemail@house.gov","house.gov"]
["Photobug",7607485366,"0 Bowman Street","Marketing","fakeemail@dropbox.com","dropbox.com"]
["Photobug",8522854622,"1567 American Ash Terrace","Accounting","fakeemail@princeton.edu","princeton.edu"]
["Photobug",9281206476,"7542 Johnson Center","Business Development","fakeemail@mac.com","mac.com"]
["Photobug",4063112678,"449 Havey Way","Training","fakeemail@prweb.com","prweb.com"]
["Photofeed",2147242454,"0 Troy Drive","Services","fakeemail@amazon.co.jp","amazon.co.jp"]
["Photojam",2114935259,"5 Toban Way","Human Resources","fakeemail@ehow.com","ehow.com"]
["Photojam",5871882727,"39325 Susan Pass","Training","fakeemail@chicagotribune.com","chicagotribune.com"]
["Photolist",6513811923,"5139 Commercial Way","Accounting","fakeemail@google.pl","google.pl"]
["Photolist",5871923069,"94 Straubel Point","Product Management","fakeemail@cdbaby.com","cdbaby.com"]
["Photolist",1428075407,"501 Buhler Road","Research and Development","fakeemail@shinystat.com","shinystat.com"]
["Photolist",6698797245,"0496 Oneill Place","Engineering","fakeemail@imageshack.us","imageshack.us"]
["Photolist",5062940615,"9 Bay Way","Business Development","fakeemail@flickr.com","flickr.com"]
["Photospace",5984592875,"608 Fieldstone Street","Research and Development","fakeemail@hatena.ne.jp","hatena.ne.jp"]
["Pixoboo",6096437463,"39487 Birchwood Road","Engineering","fakeemail@cnn.com","cnn.com"]
["Pixoboo",3771629653,"5 Oak Street","Product Management","fakeemail@bandcamp.com","bandcamp.com"]
["Pixoboo",3812115742,"12297 Butternut Drive","Business Development","fakeemail@sitemeter.com","sitemeter.com"]
["Pixonyx",4938010804,"78 Rockefeller Place","Marketing","fakeemail@usnews.com","usnews.com"]
["Pixope",5468139557,"6 Westport Drive","Product Management","fakeemail@bing.com","bing.com"]
["Plajo",8301361988,"408 Northfield Park","Marketing","fakeemail@blogspot.com","blogspot.com"]
["Plambee",2055817690,"343 Reindahl Center","Legal","fakeemail@imgur.com","imgur.com"]
["Plambee",8427960357,"20396 Chinook Plaza","Product Management","fakeemail@aol.com","aol.com"]
["Plambee",2268500447,"6878 Lighthouse Bay Parkway","Services","fakeemail@shareasale.com","shareasale.com"]
["Plambee",6086164488,"236 Erie Pass","Engineering","fakeemail@illinois.edu","illinois.edu"]
["Podcat",9177124511,"0 Kedzie Plaza","Human Resources","fakeemail@printfriendly.com","printfriendly.com"]
["Podcat",4921431141,"3647 Kenwood Court","Product Management","fakeemail@exblog.jp","exblog.jp"]
["Quamba",5112534036,"40 Transport Plaza","Sales","fakeemail@unc.edu","unc.edu"]
["Quatz",9897284590,"533 Ronald Regan Terrace","Sales","fakeemail@weather.com","weather.com"]
["Quatz",6741358336,"4 Sutteridge Lane","Engineering","fakeemail@hao123.com","hao123.com"]
["Quatz",8417379199,"8861 Graceland Lane","Human Resources","fakeemail@skype.com","skype.com"]
["Quatz",6662489704,"26032 Arkansas Alley","Support",{"$f":"\"fakeemail@\"&F579","v":"fakeemail@discovery.com"},"discovery.com"]
["Quatz",1078431344,"03861 Gale Parkway","Research and Development","fakeemail@123-reg.co.uk","123-reg.co.uk"]
["Quatz",9023454775,"12145 Roth Park","Training","fakeemail@flickr.com","flickr.com"]
["Quatz",2464264533,"0 Carioca Circle","Product Management","fakeemail@spotify.com","spotify.com"]
["Quaxo",1808957754,"94577 Warrior Street","Sales","fakeemail@google.pl","google.pl"]
["Quaxo",3932996491,"20 Upham Parkway","Marketing","fakeemail@blinklist.com","blinklist.com"]
["Quaxo",3861976449,"833 Transport Plaza","Accounting","fakeemail@wsj.com","wsj.com"]
["Quimba",2242563752,"166 Old Shore Crossing","Engineering","fakeemail@wikimedia.org","wikimedia.org"]
["Quimba",5355130999,"805 Scott Avenue","Human Resources","fakeemail@barnesandnoble.com","barnesandnoble.com"]
["Quimm",7978022869,"770 Judy Circle","Support","fakeemail@businessweek.com","businessweek.com"]
["Quimm",6138745718,"1 Village Street","Engineering","fakeemail@mysql.com","mysql.com"]
["Quinu",6712084953,"50642 Westend Pass","Accounting","fakeemail@reverbnation.com","reverbnation.com"]
["Quinu",6569033982,"91284 Elgar Point","Human Resources","fakeemail@latimes.com","latimes.com"]
["Quinu",3086224709,"76 Fordem Pass","Engineering","fakeemail@issuu.com","issuu.com"]
["Quinu",2639690839,"9 Jenifer Crossing","Research and Development","fakeemail@4shared.com","4shared.com"]
["Quire",4606926825,"2 Maryland Park","Business Development","fakeemail@mediafire.com","mediafire.com"]
["Realblab",7868045337,"2934 Mallard Pass","Marketing","fakeemail@typepad.com","typepad.com"]
["Realblab",4741021809,"4067 Columbus Junction","Human Resources","fakeemail@e-recht24.de","e-recht24.de"]
["Realblab",5642785184,"51546 Acker Way","Business Development","fakeemail@goodreads.com","goodreads.com"]
["Realblab",8054271946,"2 American Ash Drive","Services","fakeemail@timesonline.co.uk","timesonline.co.uk"]
["Realblab",1495121656,"171 Donald Parkway","Human Resources","fakeemail@salon.com","salon.com"]
["Realbridge",8054732776,"84 Esch Street","Training","fakeemail@chron.com","chron.com"]
["Realbridge",9536166717,"1611 Manitowish Parkway","Engineering","fakeemail@merriam-webster.com","merriam-webster.com"]
["Realbridge",6522351408,"78797 Ohio Hill","Research and Development","fakeemail@issuu.com","issuu.com"]
["Realbridge",5883333707,"024 Texas Point","Training","fakeemail@over-blog.com","over-blog.com"]
["Realbuzz",9369235791,"1 Buhler Alley","Engineering","fakeemail@diigo.com","diigo.com"]
["Realcube",8522112476,"87520 Old Gate Junction","Business Development","fakeemail@feedburner.com","feedburner.com"]
["Realcube",4163204685,"43 Northwestern Park","Human Resources","fakeemail@phpbb.com","phpbb.com"]
["Realcube",7474533416,"2 Ludington Way","Accounting","fakeemail@dropbox.com","dropbox.com"]
["Realcube",6754149085,"923 New Castle Park","Training","fakeemail@tamu.edu","tamu.edu"]
["Realcube",6015486840,"08 Alpine Plaza","Services","fakeemail@prlog.org","prlog.org"]
["Realcube",7966900248,"8 Doe Crossing Parkway","Accounting","fakeemail@4shared.com","4shared.com"]
["Realcube",2287387643,"5120 Blackbird Point","Human Resources","fakeemail@google.pl","google.pl"]
["Realcube",7169069782,"47 Northridge Avenue","Support","fakeemail@nifty.com","nifty.com"]
["Realcube",7414539457,"43 Sunfield Street","Sales","fakeemail@epa.gov","epa.gov"]
["Realcube",2874199187,"59 Magdeline Court","Engineering","fakeemail@booking.com","booking.com"]
["Realcube",2845417909,"4371 Carpenter Alley","Product Management","fakeemail@merriam-webster.com","merriam-webster.com"]
["Realcube",3722224062,"37825 Crescent Oaks Avenue","Marketing","fakeemail@multiply.com","multiply.com"]
["Realcube",6849397886,"757 Hagan Circle","Services","fakeemail@scribd.com","scribd.com"]
["Realfire",5854145865,"28 Magdeline Drive","Training","fakeemail@twitter.com","twitter.com"]
["Realfire",8473066892,"52617 Shasta Point","Sales","fakeemail@trellian.com","trellian.com"]
["Realfire",1705988482,"658 John Wall Park","Legal","fakeemail@harvard.edu","harvard.edu"]
["Realfire",7865636414,"5300 Orin Crossing","Training","fakeemail@deliciousdays.com","deliciousdays.com"]
["Realfire",1697100100,"45 Comanche Terrace","Services","fakeemail@tmall.com","tmall.com"]
["Realfire",9402493561,"32653 Sugar Alley","Legal","fakeemail@ning.com","ning.com"]
["Realfire",3689066035,"99475 Westridge Drive","Business Development","fakeemail@answers.com","answers.com"]
["Reallinks",4325371292,"60884 Bartelt Plaza","Engineering","fakeemail@timesonline.co.uk","timesonline.co.uk"]
["Reallinks",2781304395,"08425 Katie Park","Training","fakeemail@artisteer.com","artisteer.com"]
["Reallinks",7518694556,"6 Bartillon Point","Research and Development","fakeemail@youku.com","youku.com"]
["Realmix",6757682336,"9431 Stone Corner Way","Sales","fakeemail@delicious.com","delicious.com"]
["Realmix",7511413854,"8 Tennyson Road","Training","fakeemail@upenn.edu","upenn.edu"]
["Realmix",6691591931,"0969 Esch Plaza","Training","fakeemail@mtv.com","mtv.com"]
["Realpoint",7075836506,"095 Londonderry Road","Accounting","fakeemail@europa.eu","europa.eu"]
["Rhybox",2086679018,"13888 Quincy Lane","Legal","fakeemail@tinyurl.com","tinyurl.com"]
["Rhycero",1705402584,"9098 Loomis Place","Engineering","fakeemail@house.gov","house.gov"]
["Rhycero",2014643100,"11 Meadow Vale Hill","Engineering","fakeemail@auda.org.au","auda.org.au"]
["Rhycero",2038392843,"1630 Nelson Avenue","Sales","fakeemail@army.mil","army.mil"]
["Rhycero",3902791581,"9 Kingsford Crossing","Business Development","fakeemail@wiley.com","wiley.com"]
["Rhyloo",4681578328,"1923 Cardinal Crossing","Support","fakeemail@google.co.uk","google.co.uk"]
["Rhyloo",7499265212,"7003 Sommers Way","Sales","fakeemail@csmonitor.com","csmonitor.com"]
["Rhynoodle",2269407552,"6 Mallard Circle","Research and Development","fakeemail@photobucket.com","photobucket.com"]
["Rhyzio",3773445214,"56 Acker Crossing","Research and Development","fakeemail@opera.com","opera.com"]
["Rhyzio",4921497527,"10 Continental Circle","Engineering","fakeemail@comsenz.com","comsenz.com"]
["Rhyzio",6227879055,"2235 Meadow Vale Pass","Engineering","fakeemail@yolasite.com","yolasite.com"]
["Riffpath",6449951545,"150 Spohn Alley","Sales",{"$f":"\"fakeemail@\"&F643","v":"fakeemail@360.cn"},"360.cn"]
["Riffpath",4849099616,"8 Schlimgen Center","Accounting","fakeemail@opera.com","opera.com"]
["Riffpedia",3847135570,"080 Dovetail Trail","Services","fakeemail@blogger.com","blogger.com"]
["Riffpedia",1081920417,"34 Veith Road","Services","fakeemail@npr.org","npr.org"]
["Riffwire",7174185474,"94326 Rusk Street","Sales","fakeemail@omniture.com","omniture.com"]
["Riffwire",3614633225,"68 Walton Plaza","Marketing","fakeemail@eepurl.com","eepurl.com"]
["Riffwire",8972597060,"79 Algoma Crossing","Sales","fakeemail@google.ru","google.ru"]
["Roodel",1298170919,"72140 Anderson Drive","Legal","fakeemail@storify.com","storify.com"]
["Roombo",5034151195,"85214 Paget Crossing","Marketing","fakeemail@abc.net.au","abc.net.au"]
["Roombo",7275464184,"1967 Nova Terrace","Legal","fakeemail@oracle.com","oracle.com"]
["Roombo",6653502101,"1 Golf Plaza","Training","fakeemail@taobao.com","taobao.com"]
["Roombo",5776716990,"65972 Delladonna Junction","Sales","fakeemail@ezinearticles.com","ezinearticles.com"]
["Roomm",3386489603,"70169 Victoria Court","Human Resources","fakeemail@indiegogo.com","indiegogo.com"]
["Roomm",2337007537,"628 Monica Circle","Support","fakeemail@behance.net","behance.net"]
["Rooxo",6374705738,"18 Columbus Circle","Human Resources","fakeemail@wufoo.com","wufoo.com"]
["Rooxo",3424394947,"6403 Bonner Hill","Services","fakeemail@flickr.com","flickr.com"]
["Shufflebeat",9471446640,"0404 Atwood Alley","Product Management","fakeemail@ovh.net","ovh.net"]
["Shufflebeat",6357904503,"403 Welch Crossing","Business Development","fakeemail@slashdot.org","slashdot.org"]
["Shuffledrive",4677935098,"00 Sunbrook Road","Marketing","fakeemail@mac.com","mac.com"]
["Shufflester",7478944566,"5 Susan Trail","Product Management","fakeemail@people.com.cn","people.com.cn"]
["Shufflester",6999947352,"9130 Amoth Center","Product Management","fakeemail@odnoklassniki.ru","odnoklassniki.ru"]
["Shuffletag",7048114044,"906 Clemons Pass","Human Resources","fakeemail@army.mil","army.mil"]
["Shuffletag",3181859827,"6 Valley Edge Hill","Legal","fakeemail@google.com.au","google.com.au"]
["Shuffletag",8787070590,"8213 Gulseth Point","Training","fakeemail@ucla.edu","ucla.edu"]
["Shuffletag",7948786505,"223 Crest Line Lane","Engineering","fakeemail@apache.org","apache.org"]
["Skaboo",8439314341,"007 1st Road","Human Resources","fakeemail@addtoany.com","addtoany.com"]
["Skaboo",5346845846,"3169 Lakeland Drive","Accounting","fakeemail@cbslocal.com","cbslocal.com"]
["Skajo",2609189951,"3 Carioca Junction","Human Resources","fakeemail@g.co","g.co"]
["Skajo",5301887489,"18704 Jenna Lane","Accounting","fakeemail@cmu.edu","cmu.edu"]
["Skalith",7607946953,"49 Hayes Place","Marketing","fakeemail@java.com","java.com"]
["Skalith",3737617872,"42851 Stone Corner Hill","Legal","fakeemail@nsw.gov.au","nsw.gov.au"]
["Skiba",3933267282,"59806 Waywood Trail","Training","fakeemail@people.com.cn","people.com.cn"]
["Skiba",8975871924,"030 Myrtle Court","Services","fakeemail@themeforest.net","themeforest.net"]
["Skiba",4101822471,"86477 Sage Hill","Human Resources","fakeemail@is.gd","is.gd"]
["Skiba",5439341542,"69185 Bonner Point","Engineering","fakeemail@rakuten.co.jp","rakuten.co.jp"]
["Skibox",9883771498,"6 Loomis Terrace","Marketing","fakeemail@smh.com.au","smh.com.au"]
["Skibox",8388230615,"00 Blaine Park","Legal","fakeemail@ebay.com","ebay.com"]
["Skibox",4855335192,"82135 Anhalt Crossing","Services","fakeemail@thetimes.co.uk","thetimes.co.uk"]
["Skidoo",1094004813,"09143 Bartillon Street","Sales","fakeemail@dyndns.org","dyndns.org"]
["Skidoo",6053438261,"0657 Bobwhite Road","Product Management","fakeemail@mac.com","mac.com"]
["Skidoo",3544978357,"5 Caliangt Way","Marketing","fakeemail@ezinearticles.com","ezinearticles.com"]
["Skilith",8417977494,"8 Kensington Lane","Research and Development","fakeemail@gnu.org","gnu.org"]
["Skilith",9907051616,"865 Orin Crossing","Sales","fakeemail@va.gov","va.gov"]
["Skilith",7159095551,"03 Ridgeview Lane","Sales","fakeemail@e-recht24.de","e-recht24.de"]
["Skimia",5843642510,"91417 Northport Parkway","Product Management","fakeemail@instagram.com","instagram.com"]
["Skimia",8757277441,"49629 Forest Dale Road","Engineering","fakeemail@pinterest.com","pinterest.com"]
["Skimia",7267779418,"197 Hoard Alley","Research and Development","fakeemail@mozilla.org","mozilla.org"]
["Skimia",8465884874,"0 Hintze Hill","Product Management","fakeemail@plala.or.jp","plala.or.jp"]
["Skimia",3313489859,"98 Fair Oaks Road","Support","fakeemail@flavors.me","flavors.me"]
["Skinder",8821686218,"2881 Sycamore Crossing","Sales","fakeemail@yahoo.com","yahoo.com"]
["Skinix",9606970116,"20 Autumn Leaf Alley","Sales","fakeemail@reuters.com","reuters.com"]
["Skinix",4998331816,"57068 Sunbrook Center","Research and Development","fakeemail@springer.com","springer.com"]
["Skinix",7918759802,"112 Tony Way","Sales","fakeemail@dailymail.co.uk","dailymail.co.uk"]
["Skinte",1599142862,"85342 Gina Trail","Business Development","fakeemail@scribd.com","scribd.com"]
["Skinte",1881453001,"93 Debra Parkway","Human Resources","fakeemail@state.gov","state.gov"]
["Skinte",2686725023,"9439 Glendale Park","Accounting","fakeemail@diigo.com","diigo.com"]
["Skippad",9742463217,"85573 Columbus Street","Human Resources","fakeemail@delicious.com","delicious.com"]
["Skippad",4768752942,"5 Everett Junction","Human Resources","fakeemail@cbc.ca","cbc.ca"]
["Skippad",6048013455,"192 Pawling Circle","Training","fakeemail@cafepress.com","cafepress.com"]
["Skippad",8551023213,"21 Hooker Lane","Training","fakeemail@addtoany.com","addtoany.com"]
["Skipstorm",9947485111,"3 Express Terrace","Product Management","fakeemail@cargocollective.com","cargocollective.com"]
["Skipstorm",9463517994,"650 Schlimgen Plaza","Support","fakeemail@indiatimes.com","indiatimes.com"]
["Skipstorm",7713925645,"7 Kings Place","Research and Development","fakeemail@phoca.cz","phoca.cz"]
["Skivee",3957009214,"6 Kropf Junction","Support","fakeemail@csmonitor.com","csmonitor.com"]
["Skivee",5625468317,"1406 Randy Avenue","Support",{"$f":"\"fakeemail@\"&F707","v":"fakeemail@1688.com"},"1688.com"]
["Skivee",3584201815,"30 Anhalt Drive","Research and Development","fakeemail@army.mil","army.mil"]
["Skivee",8379395546,"650 Hallows Way","Business Development","fakeemail@sohu.com","sohu.com"]
["Skyba",8866284705,"91571 Warbler Center","Support","fakeemail@slate.com","slate.com"]
["Skyba",3317224880,"9 Mayfield Lane","Legal","fakeemail@miibeian.gov.cn","miibeian.gov.cn"]
["Skyble",8603920739,"62 Kropf Alley","Support","fakeemail@gnu.org","gnu.org"]
["Skyble",5534508228,"1235 Fisk Crossing","Research and Development","fakeemail@fda.gov","fda.gov"]
["Skyble",8395340930,"2150 Artisan Junction","Human Resources","fakeemail@opensource.org","opensource.org"]
["Skyndu",2709959386,"62 Glendale Drive","Marketing","fakeemail@geocities.jp","geocities.jp"]
["Skyndu",1864545753,"9 Carpenter Road","Training","fakeemail@army.mil","army.mil"]
["Skyndu",7745550216,"6547 Park Meadow Road","Product Management","fakeemail@ocn.ne.jp","ocn.ne.jp"]
["Skyndu",7564427253,"200 Fairview Way","Support","fakeemail@china.com.cn","china.com.cn"]
["Skynoodle",2226872161,"94 Atwood Road","Sales","fakeemail@seesaa.net","seesaa.net"]
["Skynoodle",8485289621,"628 Surrey Plaza","Human Resources","fakeemail@abc.net.au","abc.net.au"]
["Skyvu",9208425208,"84853 Clemons Crossing","Sales","fakeemail@tamu.edu","tamu.edu"]
["Skyvu",9975649973,"61664 3rd Plaza","Legal","fakeemail@soundcloud.com","soundcloud.com"]
["Skyvu",5813134093,"00891 Waxwing Hill","Support","fakeemail@ibm.com","ibm.com"]
["Skyvu",4297388775,"07464 Barnett Hill","Product Management","fakeemail@google.com.au","google.com.au"]
["Snaptags",1432941344,"4 Alpine Circle","Training","fakeemail@pbs.org","pbs.org"]
["Snaptags",8318260220,"8806 Prentice Lane","Marketing","fakeemail@facebook.com","facebook.com"]
["Snaptags",4056768828,"6 Gateway Place","Training","fakeemail@addthis.com","addthis.com"]
["Snaptags",4325987083,"16 Glacier Hill Place","Sales","fakeemail@goodreads.com","goodreads.com"]
["Snaptags",4294734534,"8 Hovde Circle","Accounting","fakeemail@woothemes.com","woothemes.com"]
["Tagcat",3473551552,"49740 Golf Course Park","Legal","fakeemail@live.com","live.com"]
["Tagcat",8209204396,"1 Golf Course Street","Legal","fakeemail@themeforest.net","themeforest.net"]
["Tagchat",2375833655,"71182 Holmberg Drive","Training","fakeemail@census.gov","census.gov"]
["Tagchat",8206476881,"7957 4th Drive","Sales","fakeemail@1688.com","1688.com"]
["Tagchat",4717481738,"55 Fulton Trail","Business Development","fakeemail@cpanel.net","cpanel.net"]
["Tagchat",4463581037,"9256 Sage Drive","Training","fakeemail@4shared.com","4shared.com"]
["Tagfeed",5517383031,"7 Myrtle Circle","Human Resources","fakeemail@t-online.de","t-online.de"]
["Tagfeed",7169945390,"822 Warrior Junction","Services","fakeemail@pinterest.com","pinterest.com"]
["Tagfeed",8931501835,"6309 1st Road","Product Management","fakeemail@elpais.com","elpais.com"]
["Tagfeed",9348756750,"18820 Colorado Alley","Product Management","fakeemail@w3.org","w3.org"]
["Tagfeed",8847286247,"1 Karstens Point","Support","fakeemail@boston.com","boston.com"]
["Tagopia",6836032001,"608 Green Ridge Court","Legal","fakeemail@sourceforge.net","sourceforge.net"]
["Tagopia",5891428720,"01476 Southridge Junction","Research and Development","fakeemail@newyorker.com","newyorker.com"]
["Tagopia",2189839318,"15139 Sheridan Alley","Product Management","fakeemail@dedecms.com","dedecms.com"]
["Tagopia",6106892333,"36223 Emmet Avenue","Legal","fakeemail@jimdo.com","jimdo.com"]
["Tagpad",6308949020,"244 Express Avenue","Sales","fakeemail@tumblr.com","tumblr.com"]
["Tagpad",6497804364,"5 Marquette Junction","Services","fakeemail@techcrunch.com","techcrunch.com"]
["Tagpad",3656967397,"6099 Derek Pass","Human Resources","fakeemail@51.la","51.la"]
["Tagtune",7617954413,"3019 Lake View Plaza","Services","fakeemail@wordpress.org","wordpress.org"]
["Tagtune",1604275450,"73819 Stuart Parkway","Training","fakeemail@who.int","who.int"]
["Tagtune",4572071175,"1913 Shasta Lane","Engineering","fakeemail@youtu.be","youtu.be"]
["Talane",1145009087,"5247 Crest Line Lane","Training","fakeemail@cyberchimps.com","cyberchimps.com"]
["Tambee",5125623181,"345 Jenna Avenue","Engineering","fakeemail@narod.ru","narod.ru"]
["Tambee",7727790762,"626 Reindahl Place","Business Development","fakeemail@unesco.org","unesco.org"]
["Tambee",7168105679,"962 Main Way","Research and Development","fakeemail@oracle.com","oracle.com"]
["Tanoodle",3789323350,"209 Pankratz Center","Engineering","fakeemail@msn.com","msn.com"]
["Tanoodle",4011690402,"467 Elmside Trail","Human Resources","fakeemail@163.com","163.com"]
["Tavu",1305891398,"5228 Towne Way","Services","fakeemail@cbsnews.com","cbsnews.com"]
["Tazz",9906353613,"5 Hermina Plaza","Engineering","fakeemail@blinklist.com","blinklist.com"]
["Tazz",6178694968,"82319 Caliangt Way","Product Management","fakeemail@yale.edu","yale.edu"]
["Tazzy",7169836274,"29299 Huxley Drive","Legal","fakeemail@ucoz.ru","ucoz.ru"]
["Tazzy",7609332019,"1 Browning Hill","Business Development","fakeemail@linkedin.com","linkedin.com"]
["Tazzy",2797381803,"22996 Bartillon Crossing","Support","fakeemail@freewebs.com","freewebs.com"]
["Tekfly",1646176024,"170 Shopko Trail","Support","fakeemail@sogou.com","sogou.com"]
["Tekfly",1185415146,"82 Johnson Terrace","Legal","fakeemail@vimeo.com","vimeo.com"]
["Teklist",3567871915,"87 Eggendart Way","Support","fakeemail@technorati.com","technorati.com"]
["Teklist",2616710148,"4410 Southridge Point","Training","fakeemail@arstechnica.com","arstechnica.com"]
["Teklist",5729008623,"7936 Judy Crossing","Research and Development","fakeemail@yahoo.com","yahoo.com"]
["Teklist",9453820366,"769 Swallow Terrace","Human Resources","fakeemail@goo.ne.jp","goo.ne.jp"]
["Thoughtblab",7574184961,"129 Becker Hill","Training","fakeemail@msu.edu","msu.edu"]
["Thoughtblab",8768775655,"9 Bellgrove Terrace","Human Resources","fakeemail@wikispaces.com","wikispaces.com"]
["Thoughtblab",3175171832,"9382 Novick Street","Support",{"$f":"\"fakeemail@\"&F771","v":"fakeemail@digg.com"},"digg.com"]
["Thoughtbridge",7473662768,"0 Hanson Hill","Sales","fakeemail@umn.edu","umn.edu"]
["Thoughtbridge",2145132529,"7 Jackson Crossing","Research and Development","fakeemail@opera.com","opera.com"]
["Thoughtbridge",6548825000,"9 South Street","Accounting","fakeemail@dailymotion.com","dailymotion.com"]
["Thoughtbridge",3995757014,"67355 Dapin Pass","Legal","fakeemail@ow.ly","ow.ly"]
["Thoughtbridge",4046771889,"19163 Dwight Crossing","Business Development","fakeemail@gravatar.com","gravatar.com"]
["Thoughtmix",4035061608,"2918 Coleman Place","Business Development","fakeemail@blogger.com","blogger.com"]
["Thoughtmix",5258647019,"60699 Nancy Junction","Sales","fakeemail@symantec.com","symantec.com"]
["Thoughtsphere",2111868715,"5043 Blaine Trail","Product Management","fakeemail@wisc.edu","wisc.edu"]
["Thoughtsphere",3484389578,"1153 Basil Road","Services","fakeemail@ifeng.com","ifeng.com"]
["Thoughtstorm",5084148873,"32 Lakewood Pass","Engineering","fakeemail@diigo.com","diigo.com"]
["Thoughtstorm",7467518277,"82213 Michigan Road","Engineering","fakeemail@sphinn.com","sphinn.com"]
["Thoughtstorm",8133729637,"5 Russell Pass","Accounting","fakeemail@tinypic.com","tinypic.com"]
["Thoughtstorm",3486671765,"192 Lien Court","Services","fakeemail@buzzfeed.com","buzzfeed.com"]
["Thoughtworks",8071018971,"674 Warrior Circle","Product Management","fakeemail@paypal.com","paypal.com"]
["Thoughtworks",8507762366,"5383 Clemons Lane","Sales","fakeemail@tripod.com","tripod.com"]
["Thoughtworks",5141699170,"11 Loftsgordon Lane","Legal","fakeemail@nih.gov","nih.gov"]
["Thoughtworks",4193312527,"3051 Scofield Avenue","Support","fakeemail@rakuten.co.jp","rakuten.co.jp"]
["Topdrive",6031394914,"7 Esch Alley","Marketing","fakeemail@instagram.com","instagram.com"]
["Topdrive",7313071335,"52448 Waubesa Alley","Marketing","fakeemail@livejournal.com","livejournal.com"]
["Topicblab",8269002661,"8 Summit Terrace","Marketing","fakeemail@aol.com","aol.com"]
["Topicblab",5723629947,"1 Nancy Junction","Legal","fakeemail@weebly.com","weebly.com"]
["Topicblab",1246340206,"834 Brown Point","Legal","fakeemail@linkedin.com","linkedin.com"]
["Topiclounge",8578841156,"6 Glendale Drive","Support","fakeemail@ucoz.ru","ucoz.ru"]
["Topicshots",5174454954,"10 Cody Way","Business Development","fakeemail@deliciousdays.com","deliciousdays.com"]
["Topicshots",8779227445,"504 Sutteridge Plaza","Services","fakeemail@walmart.com","walmart.com"]
["Topicstorm",8306408975,"38 Sullivan Avenue","Accounting","fakeemail@deliciousdays.com","deliciousdays.com"]
["Topicstorm",4642133822,"004 Atwood Way","Marketing","fakeemail@china.com.cn","china.com.cn"]
["Topicware",9193264829,"94462 Donald Road","Human Resources","fakeemail@simplemachines.org","simplemachines.org"]
["Topicware",8712529988,"3815 Lukken Alley","Legal","fakeemail@fda.gov","fda.gov"]
["Topiczoom",9342087286,"2 John Wall Avenue","Marketing","fakeemail@aol.com","aol.com"]
["Topiczoom",1346905291,"508 Tennyson Place","Legal","fakeemail@live.com","live.com"]
["Topiczoom",6356740061,"53 Red Cloud Point","Business Development","fakeemail@epa.gov","epa.gov"]
["Topiczoom",3065631244,"54855 Harbort Hill","Accounting","fakeemail@usgs.gov","usgs.gov"]
["Trilia",4585447395,"087 Westridge Street","Human Resources","fakeemail@livejournal.com","livejournal.com"]
["Trilia",2979528492,"0283 Elka Alley","Support","fakeemail@businessinsider.com","businessinsider.com"]
["Trilia",6002720999,"48905 Anzinger Trail","Services","fakeemail@redcross.org","redcross.org"]
["Trilia",6699473917,"3 Springs Terrace","Sales","fakeemail@themeforest.net","themeforest.net"]
["Trilia",5529744664,"53889 Commercial Park","Sales","fakeemail@vimeo.com","vimeo.com"]
["Trilith",5097764275,"3 Dexter Junction","Sales","fakeemail@exblog.jp","exblog.jp"]
["Trilith",7889991875,"6813 Westridge Point","Research and Development","fakeemail@wikispaces.com","wikispaces.com"]
["Trudoo",2783055096,"48596 Clarendon Court","Services","fakeemail@nifty.com","nifty.com"]
["Trudoo",2688273100,"047 Corry Terrace","Legal","fakeemail@elpais.com","elpais.com"]
["Trunyx",2258536177,"1 Doe Crossing Road","Sales","fakeemail@t.co","t.co"]
["Trunyx",8778695278,"422 Independence Pass","Support","fakeemail@whitehouse.gov","whitehouse.gov"]
["Trunyx",7409536349,"55345 Hayes Terrace","Human Resources","fakeemail@odnoklassniki.ru","odnoklassniki.ru"]
["Trunyx",5215021640,"82287 Swallow Terrace","Research and Development","fakeemail@arstechnica.com","arstechnica.com"]
["Trupe",6187083748,"59744 Basil Alley","Training","fakeemail@trellian.com","trellian.com"]
["Trupe",6072292208,"3357 Mesta Crossing","Human Resources","fakeemail@webeden.co.uk","webeden.co.uk"]
["Trupe",4359297813,"0325 Cordelia Road","Training","fakeemail@trellian.com","trellian.com"]
["Trupe",5677403839,"7832 Delladonna Alley","Sales","fakeemail@plala.or.jp","plala.or.jp"]
["Twimbo",6089383185,"86388 Pearson Center","Accounting","fakeemail@sitemeter.com","sitemeter.com"]
["Twimm",7448241151,"77123 Lake View Pass","Services","fakeemail@t.co","t.co"]
["Twimm",2561852151,"914 Beilfuss Street","Human Resources","fakeemail@ucoz.ru","ucoz.ru"]
["Twimm",4523597800,"33041 Mosinee Point","Product Management","fakeemail@vistaprint.com","vistaprint.com"]
["Twinder",6035699639,"3 Homewood Point","Marketing","fakeemail@upenn.edu","upenn.edu"]
["Twinder",9327400621,"13 Kings Parkway","Research and Development","fakeemail@theguardian.com","theguardian.com"]
["Twinder",1614241216,"273 Hanover Road","Sales","fakeemail@npr.org","npr.org"]
["Twinder",8835813744,"136 Crownhardt Center","Marketing","fakeemail@mediafire.com","mediafire.com"]
["Twinte",9068293568,"3 Lyons Trail","Services","fakeemail@163.com","163.com"]
["Twinte",4546432224,"3 Stang Plaza","Sales","fakeemail@webmd.com","webmd.com"]
["Twitterbeat",3842823512,"342 Bultman Hill","Accounting","fakeemail@forbes.com","forbes.com"]
["Twitterbeat",8338541945,"763 Morning Circle","Marketing","fakeemail@cdc.gov","cdc.gov"]
["Twitterbridge",2231694647,"71195 Sundown Alley","Business Development","fakeemail@uiuc.edu","uiuc.edu"]
["Twitterlist",8541561150,"440 Green Trail","Business Development",{"$f":"\"fakeemail@\"&F835","v":"fakeemail@ow.ly"},"ow.ly"]
["Twitterlist",9705058161,"24 Oxford Terrace","Accounting","fakeemail@altervista.org","altervista.org"]
["Twitterlist",2306377436,"67923 Sachs Junction","Human Resources","fakeemail@nationalgeographic.com","nationalgeographic.com"]
["Twitternation",2154372081,"5590 Ridge Oak Street","Training","fakeemail@skype.com","skype.com"]
["Twitterwire",5407074831,"70 Vermont Parkway","Marketing","fakeemail@ycombinator.com","ycombinator.com"]
["Twitterwire",8444572369,"5 Mariners Cove Lane","Research and Development","fakeemail@nationalgeographic.com","nationalgeographic.com"]
["Twitterworks",4612396638,"2398 Johnson Lane","Engineering","fakeemail@myspace.com","myspace.com"]
["Twiyo",5057481680,"517 Monument Street","Accounting","fakeemail@cdc.gov","cdc.gov"]
["Twiyo",2503538935,"66146 Trailsway Center","Business Development","fakeemail@huffingtonpost.com","huffingtonpost.com"]
["Twiyo",2202496436,"1 Springs Plaza","Sales","fakeemail@spiegel.de","spiegel.de"]
["Twiyo",4471473205,"683 Graedel Road","Human Resources","fakeemail@cyberchimps.com","cyberchimps.com"]
["Twiyo",2026827922,"97512 Oxford Drive","Services","fakeemail@spiegel.de","spiegel.de"]
["Twiyo",3712962760,"7130 Debs Hill","Marketing","fakeemail@altervista.org","altervista.org"]
["Vidoo",2972587124,"2834 Pond Crossing","Support","fakeemail@meetup.com","meetup.com"]
["Vimbo",4962704868,"3347 Donald Court","Research and Development","fakeemail@vistaprint.com","vistaprint.com"]
["Vimbo",7961717496,"6 Emmet Way","Sales","fakeemail@google.it","google.it"]
["Vimbo",8413161390,"463 Chinook Alley","Engineering","fakeemail@myspace.com","myspace.com"]
["Vinder",8496065607,"9902 Springs Alley","Product Management","fakeemail@livejournal.com","livejournal.com"]
["Vinder",2185746220,"4817 Hallows Avenue","Engineering","fakeemail@businesswire.com","businesswire.com"]
["Vinte",8626539149,"38 Pine View Lane","Product Management","fakeemail@desdev.cn","desdev.cn"]
["Vinte",9824791440,"944 Gina Road","Accounting","fakeemail@washington.edu","washington.edu"]
["Vipe",7676464301,"7979 Rusk Circle","Sales","fakeemail@go.com","go.com"]
["Vitz",4454699214,"748 Garrison Lane","Legal","fakeemail@vinaora.com","vinaora.com"]
["Vitz",8418404848,"7827 Southridge Park","Training","fakeemail@google.ca","google.ca"]
["Vitz",3211150217,"78 Golf Pass","Training","fakeemail@addtoany.com","addtoany.com"]
["Vitz",5516704527,"4 Rowland Parkway","Human Resources","fakeemail@howstuffworks.com","howstuffworks.com"]
["Viva",5258141231,"30997 Schmedeman Parkway","Engineering","fakeemail@oracle.com","oracle.com"]
["Viva",8403945834,"37 John Wall Avenue","Legal","fakeemail@privacy.gov.au","privacy.gov.au"]
["Viva",5741019203,"59136 Myrtle Trail","Engineering","fakeemail@bloglines.com","bloglines.com"]
["Viva",9861688580,"34 Forest Run Point","Legal","fakeemail@foxnews.com","foxnews.com"]
["Voolia",4626641841,"9 Stuart Crossing","Marketing","fakeemail@free.fr","free.fr"]
["Voolia",9602724931,"6 Anderson Lane","Research and Development","fakeemail@technorati.com","technorati.com"]
["Voolia",7164313881,"15 Dottie Street","Services","fakeemail@cocolog-nifty.com","cocolog-nifty.com"]
["Voolia",1589081302,"998 Leroy Trail","Services","fakeemail@fema.gov","fema.gov"]
["Voolia",3292403885,"747 Talmadge Crossing","Legal","fakeemail@ucoz.com","ucoz.com"]
["Voolith",8924077223,"78989 Alpine Trail","Accounting","fakeemail@un.org","un.org"]
["Voolith",8967808725,"29 Carberry Street","Sales","fakeemail@zdnet.com","zdnet.com"]
["Voomm",8668795538,"35 Gateway Court","Legal","fakeemail@reddit.com","reddit.com"]
["Voomm",7338954487,"7365 Eagle Crest Way","Business Development","fakeemail@ask.com","ask.com"]
["Voomm",5732934571,"7 Bluejay Place","Services","fakeemail@state.tx.us","state.tx.us"]
["Voomm",7292293672,"86666 Almo Lane","Training","fakeemail@state.tx.us","state.tx.us"]
["Voomm",9024694503,"8134 Raven Hill","Human Resources","fakeemail@sourceforge.net","sourceforge.net"]
["Voomm",1103641617,"626 Sullivan Point","Research and Development","fakeemail@chron.com","chron.com"]
["Voomm",3307815063,"9 Summit Point","Legal","fakeemail@163.com","163.com"]
["Voomm",8309493346,"9 Nancy Park","Legal","fakeemail@examiner.com","examiner.com"]
["Voomm",2493984455,"9268 Eliot Court","Marketing","fakeemail@go.com","go.com"]
["Voonder",3352969226,"0102 Union Place","Product Management","fakeemail@bloglines.com","bloglines.com"]
["Voonder",1051977808,"79477 Dapin Park","Product Management","fakeemail@google.com","google.com"]
["Voonix",8804622061,"8 Fremont Trail","Support","fakeemail@apache.org","apache.org"]
["Voonte",5347857560,"79349 Northport Point","Human Resources","fakeemail@hp.com","hp.com"]
["Voonte",2907239334,"6579 Heath Crossing","Marketing","fakeemail@blogspot.com","blogspot.com"]
["Voonyx",6806458086,"32 Graedel Center","Support","fakeemail@posterous.com","posterous.com"]
["Voonyx",2676853882,"123 Oneill Drive","Product Management","fakeemail@slashdot.org","slashdot.org"]
["Wikibox",7545577212,"6 Buhler Court","Accounting","fakeemail@trellian.com","trellian.com"]
["Wikibox",8993361927,"4 Lindbergh Drive","Support","fakeemail@sciencedaily.com","sciencedaily.com"]
["Wikivu",5236239999,"2897 Hollow Ridge Lane","Marketing","fakeemail@epa.gov","epa.gov"]
["Wikivu",8386427838,"31762 Darwin Park","Marketing","fakeemail@loc.gov","loc.gov"]
["Wikivu",8802444979,"7637 Green Ridge Center","Sales","fakeemail@photobucket.com","photobucket.com"]
["Wikizz",5447768353,"36283 Jackson Pass","Research and Development","fakeemail@vimeo.com","vimeo.com"]
["Wikizz",6176009435,"84 Norway Maple Place","Marketing","fakeemail@sina.com.cn","sina.com.cn"]
["Wikizz",7688770701,"61645 Carey Lane","Accounting","fakeemail@joomla.org","joomla.org"]
["Wikizz",6341164886,"047 Jenna Lane","Sales","fakeemail@tinypic.com","tinypic.com"]
["Wikizz",3146641646,"032 Granby Court","Legal","fakeemail@youtu.be","youtu.be"]
["Wikizz",5607449792,"49 Mayer Junction","Research and Development","fakeemail@delicious.com","delicious.com"]
["Wordify",7833054975,"97311 Division Junction","Business Development",{"$f":"\"fakeemail@\"&F899","v":"fakeemail@google.pl"},"google.pl"]
["Wordpedia",5237621117,"73981 Crowley Trail","Marketing","fakeemail@delicious.com","delicious.com"]
["Wordpedia",8511999550,"029 Dayton Alley","Training","fakeemail@mlb.com","mlb.com"]
["Wordpedia",2107068639,"3 Declaration Place","Human Resources","fakeemail@webs.com","webs.com"]
["Wordpedia",1713523684,"89 Luster Circle","Human Resources","fakeemail@scribd.com","scribd.com"]
["Wordpedia",3315317283,"8 Brown Avenue","Research and Development","fakeemail@hao123.com","hao123.com"]
["Wordware",1366641411,"63345 Dahle Street","Services","fakeemail@home.pl","home.pl"]
["Wordware",6525700591,"62 Becker Place","Marketing","fakeemail@cdbaby.com","cdbaby.com"]
["Yabox",1755630626,"711 Prairieview Plaza","Marketing","fakeemail@hatena.ne.jp","hatena.ne.jp"]
["Yabox",5862514763,"650 Dottie Plaza","Legal","fakeemail@earthlink.net","earthlink.net"]
["Yacero",3147343806,"1 Dryden Park","Human Resources","fakeemail@furl.net","furl.net"]
["Yacero",4583901226,"48 Karstens Park","Human Resources","fakeemail@state.tx.us","state.tx.us"]
["Yadel",5673075726,"3 Sloan Lane","Sales","fakeemail@comsenz.com","comsenz.com"]
["Yadel",8355911855,"7269 Prentice Parkway","Accounting","fakeemail@bandcamp.com","bandcamp.com"]
["Yadel",3098519109,"0 Vera Pass","Business Development","fakeemail@soup.io","soup.io"]
["Yadel",8659535597,"59 Dixon Junction","Training","fakeemail@oracle.com","oracle.com"]
["Yadel",8888880114,"3 Southridge Parkway","Research and Development","fakeemail@simplemachines.org","simplemachines.org"]
["Yakidoo",8378008914,"426 Golf Street","Marketing","fakeemail@noaa.gov","noaa.gov"]
["Yakidoo",5987248238,"4 Union Alley","Human Resources","fakeemail@so-net.ne.jp","so-net.ne.jp"]
["Yakidoo",5917835806,"4 Ridgeview Center","Training","fakeemail@usgs.gov","usgs.gov"]
["Yakidoo",5178707553,"31 Melrose Park","Product Management","fakeemail@fotki.com","fotki.com"]
["Yakijo",7773767255,"20754 Texas Alley","Product Management","fakeemail@geocities.jp","geocities.jp"]
["Yakijo",2403562306,"53723 Kensington Way","Business Development","fakeemail@alibaba.com","alibaba.com"]
["Yakijo",5959877130,"1219 Bunting Terrace","Sales","fakeemail@smh.com.au","smh.com.au"]
["Yakijo",2523171683,"63 Grayhawk Place","Legal","fakeemail@un.org","un.org"]
["Yakitri",6847055366,"29 Comanche Point","Support","fakeemail@ameblo.jp","ameblo.jp"]
["Yakitri",8351006989,"871 Haas Parkway","Training","fakeemail@arstechnica.com","arstechnica.com"]
["Yakitri",5589518584,"9468 Badeau Lane","Engineering","fakeemail@youku.com","youku.com"]
["Yakitri",3359776366,"46 Sheridan Crossing","Engineering","fakeemail@nih.gov","nih.gov"]
["Yakitri",6602880381,"24 Brown Crossing","Engineering","fakeemail@salon.com","salon.com"]
["Yakitri",4026889572,"37123 Hansons Plaza","Marketing","fakeemail@nba.com","nba.com"]
["Yambee",2437828330,"2 Tennyson Hill","Sales","fakeemail@webs.com","webs.com"]
["Yambee",2828181167,"54 Comanche Crossing","Training","fakeemail@archive.org","archive.org"]
["Yamia",5323251119,"6 Autumn Leaf Avenue","Engineering","fakeemail@msu.edu","msu.edu"]
["Yamia",5664169451,"3 Loeprich Avenue","Accounting","fakeemail@comcast.net","comcast.net"]
["Yamia",1754207111,"0689 Thompson Place","Engineering","fakeemail@parallels.com","parallels.com"]
["Yata",3332439145,"8605 Fulton Circle","Human Resources","fakeemail@wiley.com","wiley.com"]
["Yata",2714181048,"96 School Hill","Support","fakeemail@domainmarket.com","domainmarket.com"]
["Yata",9568582725,"39 Green Alley","Support","fakeemail@chron.com","chron.com"]
["Yata",9512825588,"2881 Karstens Plaza","Business Development","fakeemail@rediff.com","rediff.com"]
["Yata",2805051398,"99 Summer Ridge Alley","Accounting","fakeemail@independent.co.uk","independent.co.uk"]
["Yodel",6701795396,"42767 Lerdahl Center","Services","fakeemail@ihg.com","ihg.com"]
["Yodo",3802485493,"58756 Doe Crossing Street","Business Development","fakeemail@shinystat.com","shinystat.com"]
["Yodo",8378912876,"4034 Tennyson Junction","Business Development","fakeemail@surveymonkey.com","surveymonkey.com"]
["Yodo",9827191346,"32 Rutledge Place","Training","fakeemail@nhs.uk","nhs.uk"]
["Yodoo",7161925742,"6176 Melrose Parkway","Support","fakeemail@phoca.cz","phoca.cz"]
["Yombu",3649330959,"739 Kings Way","Training","fakeemail@guardian.co.uk","guardian.co.uk"]
["Yombu",2989216830,"19 Vahlen Trail","Research and Development","fakeemail@omniture.com","omniture.com"]
["Yombu",4452035991,"8 Rockefeller Crossing","Product Management","fakeemail@theatlantic.com","theatlantic.com"]
["Yotz",9754609823,"92976 Linden Hill","Product Management","fakeemail@dot.gov","dot.gov"]
["Yotz",9908390165,"9282 Shelley Crossing","Engineering","fakeemail@hhs.gov","hhs.gov"]
["Yotz",9652095410,"75 Browning Terrace","Sales","fakeemail@mapquest.com","mapquest.com"]
["Youbridge",6412383957,"7 Forest Dale Court","Business Development","fakeemail@ucsd.edu","ucsd.edu"]
["Youbridge",4163311449,"24 Atwood Pass","Business Development","fakeemail@toplist.cz","toplist.cz"]
["Youbridge",8906468619,"5 Ramsey Hill","Training","fakeemail@amazon.com","amazon.com"]
["Youbridge",6272937715,"695 Farwell Parkway","Training","fakeemail@w3.org","w3.org"]
["Youfeed",3245075512,"878 Crownhardt Park","Marketing","fakeemail@issuu.com","issuu.com"]
["Youfeed",1209214562,"96 Fulton Circle","Services","fakeemail@ucoz.ru","ucoz.ru"]
["Youspan",8878855357,"2 Chive Terrace","Legal","fakeemail@boston.com","boston.com"]
["Youspan",2048049886,"643 Fisk Center","Support","fakeemail@buzzfeed.com","buzzfeed.com"]
["Youspan",2808569428,"530 Stoughton Center","Services","fakeemail@java.com","java.com"]
["Youspan",3173824147,"7688 Grasskamp Avenue","Research and Development","fakeemail@godaddy.com","godaddy.com"]
["Youspan",7016036514,"30191 1st Place","Research and Development","fakeemail@parallels.com","parallels.com"]
["Youtags",3536081347,"6 3rd Point","Human Resources","fakeemail@eepurl.com","eepurl.com"]
["Youtags",4472072653,"4 Dawn Junction","Support",{"$f":"\"fakeemail@\"&F963","v":"fakeemail@oaic.gov.au"},"oaic.gov.au"]
["Yoveo",4305842497,"7 Petterle Terrace","Engineering","fakeemail@google.it","google.it"]
["Yoveo",2798561326,"660 Hintze Point","Sales","fakeemail@ifeng.com","ifeng.com"]
["Yozio",2184944716,"39453 Marcy Pass","Marketing","fakeemail@zimbio.com","zimbio.com"]
["Yozio",3546444869,"349 Laurel Circle","Research and Development","fakeemail@friendfeed.com","friendfeed.com"]
["Yozio",9887371026,"82 Crowley Circle","Accounting","fakeemail@about.me","about.me"]
["Yozio",9833255526,"299 Ludington Center","Engineering","fakeemail@examiner.com","examiner.com"]
["Zava",4162978717,"61096 Gale Avenue","Engineering","fakeemail@bloomberg.com","bloomberg.com"]
["Zava",8074082498,"8169 Moulton Plaza","Engineering","fakeemail@bing.com","bing.com"]
["Zazio",6759010164,"67158 Washington Junction","Product Management","fakeemail@stanford.edu","stanford.edu"]
["Zazio",1001928194,"9514 Petterle Crossing","Research and Development","fakeemail@unblog.fr","unblog.fr"]
["Zazio",4814866765,"3 Eagle Crest Place","Support","fakeemail@rambler.ru","rambler.ru"]
["Zoombeat",7969924456,"1 Mallard Junction","Legal","fakeemail@slashdot.org","slashdot.org"]
["Zoombeat",1465264973,"1 Knutson Avenue","Research and Development","fakeemail@seattletimes.com","seattletimes.com"]
["Zoombeat",8194556566,"01 Glacier Hill Way","Marketing","fakeemail@huffingtonpost.com","huffingtonpost.com"]
["Zoombeat",2266092626,"823 Larry Trail","Engineering","fakeemail@miibeian.gov.cn","miibeian.gov.cn"]
["Zoombox",5474301592,"3664 Dorton Hill","Engineering","fakeemail@ft.com","ft.com"]
["Zoombox",9293456373,"44 Grim Way","Research and Development","fakeemail@hibu.com","hibu.com"]
["Zoomcast",4439585451,"68 Hagan Lane","Business Development","fakeemail@microsoft.com","microsoft.com"]
["Zoomcast",6806742119,"961 Carioca Way","Accounting","fakeemail@hubpages.com","hubpages.com"]
["Zoomcast",3263477049,"75 Cardinal Center","Marketing","fakeemail@shinystat.com","shinystat.com"]
["Zoomcast",1713835249,"337 Old Shore Court","Legal","fakeemail@edublogs.org","edublogs.org"]
["Zoomdog",5026976069,"190 Sauthoff Center","Sales","fakeemail@thetimes.co.uk","thetimes.co.uk"]
["Zoomlounge",9274093083,"40 Nevada Road","Human Resources","fakeemail@123-reg.co.uk","123-reg.co.uk"]
["Zoomlounge",8257465936,"45 Dakota Circle","Training","fakeemail@utexas.edu","utexas.edu"]
["Zoomlounge",8584250940,"46363 Pawling Place","Research and Development","fakeemail@twitter.com","twitter.com"]
["Zoomlounge",6566979489,"55 Kingsford Way","Legal","fakeemail@bigcartel.com","bigcartel.com"]
["Zoomzone",6643237279,"1083 Mccormick Road","Engineering","fakeemail@census.gov","census.gov"]
["Zoonder",7044111283,"04 Sherman Drive","Product Management","fakeemail@weibo.com","weibo.com"]
["Zoonder",8608038874,"810 Mifflin Junction","Product Management","fakeemail@wordpress.org","wordpress.org"]
["Zoonder",8267568649,"7235 Gerald Place","Marketing","fakeemail@yolasite.com","yolasite.com"]
["Zoonoodle",2829908497,"858 David Trail","Support","fakeemail@cocolog-nifty.com","cocolog-nifty.com"]
["Zoonoodle",1484144838,"49080 West Alley","Business Development","fakeemail@prweb.com","prweb.com"]
["Zoonoodle",9703560899,"646 Park Meadow Terrace","Accounting","fakeemail@msn.com","msn.com"]
["Zoonoodle",3699144419,"623 South Trail","Legal","fakeemail@rakuten.co.jp","rakuten.co.jp"]
["Zooveo",1838918995,"0294 Scofield Street","Product Management","fakeemail@bbc.co.uk","bbc.co.uk"]
["Zoovu",1121160220,"7 Evergreen Junction","Accounting","fakeemail@dot.gov","dot.gov"]
["Zoozzy",2982631841,"572 Anthes Lane","Legal","fakeemail@t-online.de","t-online.de"]
["Zoozzy",5971266327,"1841 Orin Parkway","Research and Development","fakeemail@eventbrite.com","eventbrite.com"]